Workbook

Sheet 取説
D1: ファイル名： | E1: =MID(CELL("filename",A1),FIND("[",CELL("filename",A1))+1,FIND("]",CELL("filename",A1))-FIND("[",CELL("filename",A1))-1) -> suitou01m.xlsm
D2: 父ちゃん母ちゃん簡単 出 納 帳 （プチ・マクロ版） | L2: お読みください m(__)m | P2: Ver 1.8
E4: このそふとはマクロを含まないソフトとして 2006年 7月 15日に公開した出納帳を元に、次のマクロを付加したものです。
E5: ○ 便宜上、銀行等の口座引落額を繰り入れて経費総額を把握できるように改修
E6: ○ 開始月が変更できるように改修
E7: ○ ページの追加削除ができるように改修
E8: ○ 継続使用を可能にするために年次更新を追加
E9: windows8.1のExcel2013で制作しています。Excel2010でも動作確認済です。
E12: 改変暦
F13: 2006-07-15 | G13: Ver 1.0 | H13: 初版を公開
F14: 2011-09-06 | H14: ご利用者様のご指摘によりバグ修正
H15: 各月シートの費目集計表の "合 計" の文字列表示数式に誤りが有りこれを修正
H16: （"合 計"の文字列を表示するタイミング判断の条件式の範囲が一部に留まっていた）
H17: ご指摘を頂きました "谷田貝 奉文" 様、ありがとうございました。
F18: 2014-12-17 | G18: Ver 1.4 | H18: ページの追加ができるように改修（マクロを設定）。同時に年次更新・開始月変更・自振合算の機能他を追加。
F19: 2016-04-03 | G19: Ver 1.6 | H19: 残高算出式を変更
F20: 2018-02-28 | G20: Ver 1.8 | H20: エラー（マイナス残高or貸借同行入力）の警告表示を復活
E21: -----------------------------------------------------------------------------
B22: このソフトについて
D24: この出納帳は父ちゃん母ちゃんの小規模事業（申告は税理士任せ）用です。もちろん個人やご家庭でもご利用になれます。
E25: できるだけマクロの使用を控えていますので、痒い所に手が届くようには出来ていません m(__)m
E26: 金額の桁数は８桁（１億円未満）までが正常表示が可能です。これを超えると桁腺を無視して縮小表示されます。（出金項目毎月別集計表は７桁）
E27: 文字が縮小されて桁腺と重なり判読しにくくなる場合は、Ｅｘｃｅｌメニューの表示で一時的に拡大して判読してください。
E28: 金額欄のフォントはMS明朝体に設定されています。同じフォントが無い場合は8桁以内であっても桁腺ズレが発生する場合があります。
D30: このソフトは当初 WindowsXP機のEXCEL2003で作成してたものを、Windows8.1機のExcel2013で改修したものです。
E31: Excel2010と2013以外での動作確認は未済です。
D33: シート見出し(最下部)をご覧ください。１２ヶ月分が用意されています。該当月を選んでから入力してください。
D34: 月次シートの他に、“取説”(このシート) や “年計” ・ “費目毎月別集計表” も用意されています。 | M34: 年計シート の項へ
D35: （月次入力の前に次項の “最初に設定が必要です” を先に済ませてください） | M35: 費目毎月別集計表 の項へ
B37: 最初に設定が必要です （いずれも開始月のみで設定できます。）
D39: 開始月の出納帳で次の四か所の 色枠内を設定してください。（ この設定は初年度の開始月のみです。）
D41: ① 開始月の 年度を入力する。 数値のみを入力してください。"年"などの文字は入力禁止です。
D43: ② 企業や団体名もしくはこの出納帳の呼称を入力してください。 未入力でも機能に影響は有りません。
D45: ③ 前年度より繰越 行の残高欄に金額を入力してください。 繰越額が無い場合は入力不要です。
D47: ④ 費目別集計表 の 費目名 欄に費目名（科目名）を入力してください。
E48: “出金項目毎月別集計表” を必要としない場合は入力不要です。
E49: 出金項目(費目)名は２９項目まで設定できます。
E50: 入金項目の振り分けは用意されていません。 入金項目も必要な場合は | L50: 世話人さんの簡単エクセル出納帳 | P50: をご検討ください。
E51: №３０ は既定で “その他” としています。
F52: 費用として扱いたく無いものにご利用ください。（預金・立替金・貸金等々。）
B54: 帳票および入力表
C56: 各月シート
D57: １２か月分のシートが有ります。
E58: 開始月（会計期間）を変更すればシート名が変わります。
C60: 年計シート | E60: （年間出納額集計表）
D61: 月別入出金額集計表 → 月毎に出納額の合計金額を表示します。
F62: 純 現金出納額 と 便宜上繰り入れた銀行等支出分 を区分します。
D63: 費目別集計表 → 費目毎の年間支出合計額を表示します。（月毎の集計額は事項の 費目毎月別集計表 シートで表示します。）
C65: 費目毎月別集計表シート | F65: 費目№が未入力の場合は機能しません。
D66: 出金項目毎月別集計表 → 項目(費目)毎に月別の合計額の一覧を表示します。
C68: コピペ（コピー＆貼り付け）時の注意
D69: 摘要欄は摘要欄へ、金額欄は金額欄へ等のコピペは問題有りません。罫線や書式が異なっている欄へのコピペは値貼り付け等の配慮が必要です。
B71: 入力の仕方
C73: 日々の入力
D75: 日 ・ 摘要 ・ 入金額 または 出金額 を入力します。
E76: 入金 と 出金 を同じ行に入力しないでください。
D77: 費目毎の分類集計が必要な場合は、 費目№を入力します。
D79: ※ セルを選択しただけで入力できない場合 | H79: 数式バー内で作業を行うか
D80: 既入力セルの追加修正をする場合 | H80: ダブルクリック もしくは F２キー でセル内にカーソル入れて作業を行ってください。
D82: 残高欄（自動）
E83: 入出金額を入力すると、残高が自動で表示されます。
B85: ボタンの機能
F87: 入力確定後 Enter キーを押すとカーソルが 右 に移動するように設定されます。
G88: これで数日分をまとめて入力する時などは効率的に作業ができます。
F89: 入力確定後 Enter キーを押すとカーソルが 下 に移動するように設定されます。
E91: ※ （この設定は他のExcelファイルでも同じ動きになります。）出納帳を閉じる前に元の設定に戻しておく方が良いでしょう。
F93: 入力行が不足した時に１ページ分の行を追加します。
F95: 間違って余分にページを追加した場合などに余った行をページ単位で削除します。
G96: ボタンを押しても変化が無い場合は余ったページはありません。
G97: （該当のページが１行しか使われていなくても以下は余白として残ります。）
F99: 経費の全体を把握するために便宜上銀行口座からの自動引き落とし等も含めて記帳するためのツールを用意しました。
G100: このボタンは、上の処理をするにあたり貸借不一致が発生する事象を解消するため相殺処理です。
F101: ① 銀行口座等からの支出（自動引き落とし等）を記帳します。
D102: 【必須】 | F102: ---------------> | G102: 摘要名の先頭にアスタリスク （ 小文字 “*” もしくは 大文字 “＊” ）を付加して入力します。（小文字入力はテンキーが便利）
H103: 続けて 支出金額・費目の№ を入力します。
G104: 複数行を続けて入力できます。
F105: ② 前項の入力が終わったら、
F106: ↓ | G106: “*” を付けて入力した欄を選択します。（行が連続していれば複数行(欄)を選択)
F107: ↓ | G107: ボタンをクリックします。
F108: ↓ | G108: 自動的に選択範囲の上に、行が挿入されて
G109: 摘要名欄に “*口座引落額を記帳分等の引当（ 件分）” と表示されて選択した範囲の合計額が収入欄に記帳されます。
F110: ①の入力が行われると の処理が行われるまで “月計” 欄の左側に が表示されます。
D112: 開始月のみに配置されているボタン
G114: 会計期間（通常１年間の区切り）の開始月を設定します。
G116: ="現時点の "&E1&" ファイルを複製して残します。（バックアップファイルの作成）" -> 現時点の suitou01m.xlsm ファイルを複製して残します。（バックアップファイルの作成）
H117: ファイル名の後ろに 日付時刻 を付加したファイルを保存します。
H118: 保存場所は、このファイルの在るフォルダ内の “バックアップ” フォルダです。
H119: 際限なく増えますので、用済みのファイルは削除するようにしてください。
G121: 会計期間（通常１年間）が終わったら次の年度用に帳票を書き換えます。
G122: １． | H122: 現状の帳票をファイル名の後ろに 年度数 を付加したファイルを保存します。----- | O122: （保存先= “年次決算” フォルダ)
G123: ２． | H123: 念のために現時点のファイルも複製して残します。---------------------------- | O123: （保存先= “バックアップ” フォルダ)
H124: ① と ② は保管先とファイル名が違うだけで内容は同じです。バックアップフォルダ分は後々削除してください。
G125: ３． | H125: 年度数に１を加算して期末残高を繰越高として引き継ぎます。
G126: ４． | H126: 前項繰越高以外の月次データを総て消去します。
B128: （各月の）費目別集計表 | F128: 費目№が未入力の場合は機能しません。
D129: 費目№を入力すると 費目別集計表 に反映されます。
D130: 費目名は 開始月の出納帳 にある費目別集計表の 費目名 欄で自由に設定できます。
E131: 費目名参考シートにも一般的費目名を掲載しています。よろしければご参照ください。
B133: 印刷 と 印刷プレビュー
C134: ボタンは用意されていません。 Ｅｘｃｅｌのメニュから ファイル → 印刷 をご利用ください。
C135: 用紙設定 ------- | E135: A４版縦向きに設定されています。 （ただし 費目毎月別集計表 は横向きに設定。）
C136: 印刷設定 ------- | E136: プリンターの機種によって異なります。不具合は印刷プレビューで確認して余白を調整してください。
E137: Excelの “メニュー → 校閲 → シート保護の解除” を実行してから 余白・行高さ・列幅 を調整する方法もあります。作業後はシートの保護をお忘れなく。
E138: 月次出納帳シートの調整は慎重を要します。（１パージ当りの行数が変わるとページ設定に不都合が生じます）
C139: 月々の出納帳下部の３行(グレー文字部)は印刷されません。
G180: 助け合い塾 PCサロン
G184: ( URL ) | H184: http://pasobou.world.coocan.jp/
G185: ( e-mail ) | J185: ← ( メアドは画像化されています )
A188: ページ先頭に戻る

Sheet 1月
G2: 月 度 現 金 出 納 帳
D3: 2012 | E3: =IF(L7=1,"エラー(マイナス残高)です",IF(L7=2,"入金と出金は別行に記入してください","")) ->  | I3: わがやの家計簿 | N3: ↓ 費 目 振 分 未 済
A4: =A7&G2 -> 1 月 度 現 金 出 納 帳 | M4: 費 目 別 集 計 表 | AD4: 1
A6: 月 | B6: 日 | D6: 摘 要 | F6: =SUM($F$8:F70) -> 41740 | G6: 入 金 | H6: 出 金 | I6: 残 高 | J6: № | K6: 費 目 名 | M6: № | N6: 費 目 名 | O6: 出金計
A7: =年計!AB9 -> 1 | B7: 1 | C7: =SUM($C$8:C70) -> 41740 | F7: 前年度より繰越 | I7: 455346 | J7: - | K7: * * * * * | L7: =MAX(L8:L70) -> 0 | M7: 1 | N7: 食材飲料費 | O7: =SUMIF(J$8:J70,M7,H$8:H70) -> 81941
C8: =IF(OR(LEFT(D8,1)="*",LEFT(D8,1)="＊"),G8,"") ->  | D8: お年玉 お婆ちゃん | F8: =IF(OR(LEFT(D8,1)="*",LEFT(D8,1)="＊"),H8,"") ->  | H8: 3000 | I8: =$I$7+SUM($G$8:G8)-SUM($H$8:H8) -> 452346 | J8: 7 | K8: =IF(J8<>0,VLOOKUP(J8,M$7:N$36,2,FALSE),"") -> お小遣い | L8: =IF(I8<0,1,IF(AND(G8<>"",H8<>""),2,"")) ->  | M8: 2 | N8: 外食費 | O8: =SUMIF(J$8:J70,M8,H$8:H70) -> 8340
C9: =IF(OR(LEFT(D9,1)="*",LEFT(D9,1)="＊"),G9,"") ->  | D9: お年玉 太郎 | H9: 3000 | I9: =$I$7+SUM($G$8:G9)-SUM($H$8:H9) -> 449346 | J9: 7 | K9: お小遣い | L9: =IF(I9<0,1,IF(AND(G9<>"",H9<>""),2,"")) ->  | M9: 3 | N9: 住居費 | O9: =SUMIF(J$8:J70,M9,H$8:H70) -> 75000
D10: お年玉 花子 | H10: 2000 | I10: =$I$7+SUM($G$8:G10)-SUM($H$8:H10) -> 447346 | J10: 7 | K10: お小遣い | M10: 4 | N10: 水道光熱費 | O10: =SUMIF(J$8:J70,M10,H$8:H70) -> 25350
D11: お婆ちゃんから お年賀 | G11: 10000 | I11: =$I$7+SUM($G$8:G11)-SUM($H$8:H11) -> 457346 | M11: 5 | N11: 被服費 | O11: =SUMIF(J$8:J70,M11,H$8:H70) -> 17490
B12: 2 | D12: 初詣 お賽銭 藤崎八旛宮 | H12: 1000 | I12: =$I$7+SUM($G$8:G12)-SUM($H$8:H12) -> 456346 | J12: 19 | K12: 冠婚葬祭費 | M12: 6 | N12: 教育費 | O12: =SUMIF(J$8:J70,M12,H$8:H70) -> 23000
D13: 初詣 お札代 藤崎八旛宮 | H13: 1500 | I13: =$I$7+SUM($G$8:G13)-SUM($H$8:H13) -> 454846 | J13: 19 | K13: 冠婚葬祭費 | M13: 7 | N13: お小遣い | O13: =SUMIF(J$8:J70,M13,H$8:H70) -> 31000
D14: 初詣 電車賃 4人往復 | H14: 1200 | I14: =$I$7+SUM($G$8:G14)-SUM($H$8:H14) -> 453646 | J14: 19 | K14: =IF(J14<>0,VLOOKUP(J14,M$7:N$36,2,FALSE),"") -> 冠婚葬祭費 | M14: 8 | N14: 通信ＩＴ費 | O14: =SUMIF(J$8:J70,M14,H$8:H70) -> 6220
B15: 4 | D15: 食材 ダイエー | H15: 1724 | I15: =$I$7+SUM($G$8:G15)-SUM($H$8:H15) -> 451922 | J15: 1 | K15: =IF(J15<>0,VLOOKUP(J15,M$7:N$36,2,FALSE),"") -> 食材飲料費 | M15: 9 | N15: 交際費 | O15: =SUMIF(J$8:J70,M15,H$8:H70) -> 0
D16: 灯油代 キグナス肥後 | H16: 1830 | I16: =$I$7+SUM($G$8:G16)-SUM($H$8:H16) -> 450092 | J16: 4 | K16: 水道光熱費 | M16: 10 | N16: 趣味娯楽費 | O16: =SUMIF(J$8:J70,M16,H$8:H70) -> 0
B17: 6 | D17: たかさき屋 家族会食 | H17: 8340 | I17: =$I$7+SUM($G$8:G17)-SUM($H$8:H17) -> 441752 | J17: 2 | K17: 外食費 | M17: 11 | N17: 社会保険料 | O17: =SUMIF(J$8:J70,M17,H$8:H70) -> 0
D18: 食材 ダイエー | H18: 3265 | I18: =$I$7+SUM($G$8:G18)-SUM($H$8:H18) -> 438487 | J18: 1 | K18: 食材飲料費 | M18: 12 | N18: 其他保険料 | O18: =SUMIF(J$8:J70,M18,H$8:H70) -> 18500
B19: 7 | D19: パパ 1月分 | H19: 20000 | I19: =$I$7+SUM($G$8:G19)-SUM($H$8:H19) -> 418487 | J19: 7 | K19: お小遣い | M19: 13 | N19: 保健医療費 | O19: =SUMIF(J$8:J70,M19,H$8:H70) -> 0
D20: ガソリン代 キグナス肥後 | H20: 4359 | I20: =$I$7+SUM($G$8:G20)-SUM($H$8:H20) -> 414128 | J20: 20 | K20: 車両費 | M20: 14 | N20: 税金 | O20: =SUMIF(J$8:J70,M20,H$8:H70) -> 0
B21: 9 | D21: 食材 ダイエー | H21: 6378 | I21: =$I$7+SUM($G$8:G21)-SUM($H$8:H21) -> 407750 | J21: 1 | K21: 食材飲料費 | M21: 15 | N21: 交通費 | O21: =SUMIF(J$8:J70,M21,H$8:H70) -> 0
B22: 11 | D22: 食材 ダイエー | H22: 12355 | I22: =$I$7+SUM($G$8:G22)-SUM($H$8:H22) -> 395395 | J22: 1 | K22: 食材飲料費 | M22: 16 | N22: 支払手数料 | O22: =SUMIF(J$8:J70,M22,H$8:H70) -> 0
B23: 13 | D23: お米 ダイエー | H23: 3470 | I23: =$I$7+SUM($G$8:G23)-SUM($H$8:H23) -> 391925 | J23: 1 | K23: 食材飲料費 | M23: 17 | N23: 雑貨日用品 | O23: =SUMIF(J$8:J70,M23,H$8:H70) -> 10400
D24: 焼酎 ダイエー | H24: 1790 | I24: =$I$7+SUM($G$8:G24)-SUM($H$8:H24) -> 390135 | J24: 1 | K24: 食材飲料費 | M24: 18 | N24: 消耗品費 | O24: =SUMIF(J$8:J70,M24,H$8:H70) -> 165
B25: 15 | D25: 食材 ダイエー | H25: 1894 | I25: =$I$7+SUM($G$8:G25)-SUM($H$8:H25) -> 388241 | J25: 1 | K25: 食材飲料費 | M25: 19 | N25: 冠婚葬祭費 | O25: =SUMIF(J$8:J70,M25,H$8:H70) -> 3700
B26: 16 | D26: 高速通行料 熊本～福岡 | H26: 4500 | I26: =$I$7+SUM($G$8:G26)-SUM($H$8:H26) -> 383741 | J26: 20 | K26: 車両費 | M26: 20 | N26: 車両費 | O26: =SUMIF(J$8:J70,M26,H$8:H70) -> 9859
D27: 駐車場 料金 | H27: 1000 | I27: =$I$7+SUM($G$8:G27)-SUM($H$8:H27) -> 382741 | J27: 20 | K27: 車両費 | M27: 21 | N27: 雑費 | O27: =SUMIF(J$8:J70,M27,H$8:H70) -> 0
D28: 太郎＆花子用ウエアー類 お婆ちゃんのお年玉で | H28: 13240 | I28: =$I$7+SUM($G$8:G28)-SUM($H$8:H28) -> 369501 | J28: 5 | K28: 被服費 | M28: 22 | O28: =SUMIF(J$8:J70,M28,H$8:H70) -> 0
B29: 18 | D29: 魚・野菜他 ダイエー | H29: 2367 | I29: =$I$7+SUM($G$8:G29)-SUM($H$8:H29) -> 367134 | J29: 1 | K29: 食材飲料費 | M29: 23 | O29: =SUMIF(J$8:J70,M29,H$8:H70) -> 0
D30: クリーニング代 白洋舎 | H30: 840 | I30: =$I$7+SUM($G$8:G30)-SUM($H$8:H30) -> 366294 | J30: 5 | K30: 被服費 | M30: 24 | O30: =SUMIF(J$8:J70,M30,H$8:H70) -> 0
B31: 20 | D31: 食材 ダイエー | H31: 11642 | I31: =$I$7+SUM($G$8:G31)-SUM($H$8:H31) -> 354652 | J31: 1 | K31: 食材飲料費 | M31: 25 | O31: =SUMIF(J$8:J70,M31,H$8:H70) -> 0
D32: 塾費 太郎学習塾 | H32: 15000 | I32: =$I$7+SUM($G$8:G32)-SUM($H$8:H32) -> 339652 | J32: 6 | K32: 教育費 | M32: 26 | O32: =SUMIF(J$8:J70,M32,H$8:H70) -> 0
D33: 塾費 花子バレー教室 | H33: 8000 | I33: =$I$7+SUM($G$8:G33)-SUM($H$8:H33) -> 331652 | J33: 6 | K33: 教育費 | M33: 27 | O33: =SUMIF(J$8:J70,M33,H$8:H70) -> 0
D34: ママパートお給料 12月分 | G34: 36000 | I34: =$I$7+SUM($G$8:G34)-SUM($H$8:H34) -> 367652 | M34: 28 | O34: =SUMIF(J$8:J70,M34,H$8:H70) -> 0
D35: お小遣い 太郎 | H35: 2000 | I35: =$I$7+SUM($G$8:G35)-SUM($H$8:H35) -> 365652 | J35: 7 | K35: お小遣い | M35: 29 | N35: 使途不明金 | O35: =SUMIF(J$8:J70,M35,H$8:H70) -> 3600
D36: お小遣い 花子 | H36: 1000 | I36: =$I$7+SUM($G$8:G36)-SUM($H$8:H36) -> 364652 | J36: 7 | K36: お小遣い | M36: 30 | N36: その他 | O36: =SUMIF(J$8:J70,M36,H$8:H70) -> 50000
C37: 12000 | D37: *口座引落額を記帳分等の引当（ 1 件分） | F37: 0 | G37: 12000 | I37: =$I$7+SUM($G$8:G37)-SUM($H$8:H37) -> 376652 | N37: =IF(SUM(O7:O36)=0,"","合 計") -> 合 計 | O37: =IF(SUM(O7:O36)=0,"",SUM(O7:O36)) -> 364565
C38: 0 | D38: *生命保険料 1月分 明治生命 | F38: 12000 | H38: 12000 | I38: =$I$7+SUM($G$8:G38)-SUM($H$8:H38) -> 364652 | J38: 12 | K38: 其他保険料
B39: 23 | D39: 食材 ダイエー | H39: 6483 | I39: =$I$7+SUM($G$8:G39)-SUM($H$8:H39) -> 358169 | J39: 1 | K39: 食材飲料費
D40: パパ靴下 ダイエー | H40: 3410 | I40: =$I$7+SUM($G$8:G40)-SUM($H$8:H40) -> 354759 | J40: 5 | K40: 被服費
B41: 25 | D41: ２月分家賃 山田様 | H41: 75000 | I41: =$I$7+SUM($G$8:G41)-SUM($H$8:H41) -> 279759 | J41: 3 | K41: 住居費
D42: ホットモット お弁当 | H42: 2480 | I42: =$I$7+SUM($G$8:G42)-SUM($H$8:H42) -> 277279 | J42: 1 | K42: 食材飲料費
C43: 29740 | D43: *口座引落額を記帳分等の引当（ 5 件分） | F43: 0 | G43: 29740 | I43: =$I$7+SUM($G$8:G43)-SUM($H$8:H43) -> 307019
C44: 0 | D44: *自動引き落とし 電気料 | F44: 12440 | H44: 12440 | I44: =$I$7+SUM($G$8:G44)-SUM($H$8:H44) -> 294579 | J44: 4 | K44: 水道光熱費
C45: 0 | D45: *自動引き落とし 上下水道料 | F45: 8400 | H45: 8400 | I45: =$I$7+SUM($G$8:G45)-SUM($H$8:H45) -> 286179 | J45: 4 | K45: 水道光熱費
C46: 0 | D46: *自動引き落とし ガス代 | F46: 2680 | H46: 2680 | I46: =$I$7+SUM($G$8:G46)-SUM($H$8:H46) -> 283499 | J46: 4 | K46: 水道光熱費
C47: 0 | D47: *VISAカード決済 NTT回線料・通話料 | F47: 5120 | H47: 5120 | I47: =$I$7+SUM($G$8:G47)-SUM($H$8:H47) -> 278379 | J47: 8 | K47: 通信ＩＴ費
C48: 0 | D48: *VISAカード決済 niftyプロバイダ料 | F48: 1100 | H48: 1100 | I48: =$I$7+SUM($G$8:G48)-SUM($H$8:H48) -> 277279 | J48: 8 | K48: 通信ＩＴ費
B49: 26 | D49: 単三電池 セブンイレブン | H49: 520 | I49: =$I$7+SUM($G$8:G49)-SUM($H$8:H49) -> 276759 | J49: 17 | K49: 雑貨日用品
D50: 食材 ダイエー | H50: 6450 | I50: =$I$7+SUM($G$8:G50)-SUM($H$8:H50) -> 270309 | J50: 1 | K50: 食材飲料費
D51: 便箋 ダイエー | H51: 165 | I51: =$I$7+SUM($G$8:G51)-SUM($H$8:H51) -> 270144 | J51: 18 | K51: 消耗品費
B52: 28 | D52: 食材 ゆめマート | H52: 6432 | I52: =$I$7+SUM($G$8:G52)-SUM($H$8:H52) -> 263712 | J52: 1 | K52: 食材飲料費
B53: 30 | D53: 食材 ダイエー | H53: 15211 | I53: =$I$7+SUM($G$8:G53)-SUM($H$8:H53) -> 248501 | J53: 1 | K53: 食材飲料費
D54: LED電球 6個 ダイエー | H54: 9880 | I54: =$I$7+SUM($G$8:G54)-SUM($H$8:H54) -> 238621 | J54: 17 | K54: 雑貨日用品
D55: 1月度積立金 | H55: 50000 | I55: =$I$7+SUM($G$8:G55)-SUM($H$8:H55) -> 188621 | J55: 30 | K55: その他
D56: 家財保険 県民共済 | H56: 6500 | I56: =$I$7+SUM($G$8:G56)-SUM($H$8:H56) -> 182121 | J56: 12 | K56: 其他保険料
D57: 残高相違 | H57: 3600 | I57: =$I$7+SUM($G$8:G57)-SUM($H$8:H57) -> 178521 | J57: 29 | K57: 使途不明金
I58: =$I$7+SUM($G$8:G58)-SUM($H$8:H58) -> 178521
I59: =$I$7+SUM($G$8:G59)-SUM($H$8:H59) -> 178521
I60: =$I$7+SUM($G$8:G60)-SUM($H$8:H60) -> 178521
I61: =$I$7+SUM($G$8:G61)-SUM($H$8:H61) -> 178521
I62: =$I$7+SUM($G$8:G62)-SUM($H$8:H62) -> 178521
I63: =$I$7+SUM($G$8:G63)-SUM($H$8:H63) -> 178521
I64: =$I$7+SUM($G$8:G64)-SUM($H$8:H64) -> 178521
I65: =$I$7+SUM($G$8:G65)-SUM($H$8:H65) -> 178521
I66: =$I$7+SUM($G$8:G66)-SUM($H$8:H66) -> 178521
I67: =$I$7+SUM($G$8:G67)-SUM($H$8:H67) -> 178521
I68: =$I$7+SUM($G$8:G68)-SUM($H$8:H68) -> 178521
I69: =$I$7+SUM($G$8:G69)-SUM($H$8:H69) -> 178521
C70: 自動振替処理が未済です | E70: 月 計 | G70: =SUM(G$8:G69) -> 87740 | H70: =SUM(H$8:H69) -> 364565
F71: 前月残高 | G71: =I7 -> 455346
F72: 当月残高 | H72: =I69 -> 178521
F73: 合 計 | G73: =SUM(G70:G72) -> 543086 | H73: =SUM(H70:H72) -> 543086
F75: （月計の内訳）
F76: 現 金 | G76: =G70-G77 -> 46000 | H76: =H70-H77 -> 322825
F77: 預貯金振替 | G77: =$C$7 -> 41740 | H77: =$F$6 -> 41740

Sheet 2月
G2: 月 度 現 金 出 納 帳
D3: ='1月'!D3 -> 2012 | E3: =IF(L7=1,"エラー(マイナス残高)です",IF(L7=2,"入金と出金は別行に記入してください","")) ->  | I3: ='1月'!$I$3:$K$3 -> わがやの家計簿 | L3: ↓ | N3: ↓ 費 目 振 分 未 済
A4: =A7&G2 -> 2 月 度 現 金 出 納 帳 | M4: 費 目 別 集 計 表
A6: 月 | B6: 日 | D6: 摘 要 | F6: =SUM($F$8:F37) -> 41140 | G6: 入 金 | H6: 出 金 | I6: 残 高 | J6: № | K6: 費 目 名 | M6: № | N6: 費 目 名 | O6: 出金計
A7: =IF('1月'!A7+1<=12,'1月'!A7+1,'1月'!A7+1-12) -> 2 | B7: 1 | C7: =SUM($C$8:C37) -> 41140 | F7: 前月より繰越 | I7: ='1月'!H72 -> 178521 | J7: - | K7: * * * * * | L7: =MAX(L8:L37) -> 0 | M7: ='1月'!M7 -> 1 | N7: ='1月'!N7 -> 食材飲料費 | O7: =SUMIF(J$8:J37,M7,H$8:H37) -> 45710
C8: =IF(OR(LEFT(D8,1)="*",LEFT(D8,1)="＊"),G8,"") ->  | D8: 食材 ダイエー | F8: =IF(OR(LEFT(D8,1)="*",LEFT(D8,1)="＊"),H8,"") ->  | H8: 15759 | I8: =$I$7+SUM($G$8:G8)-SUM($H$8:H8) -> 162762 | J8: 1 | K8: =IF(J8<>0,VLOOKUP(J8,M$7:N$36,2,FALSE),"") -> 食材飲料費 | L8: =IF(I8<0,1,IF(AND(G8<>"",H8<>""),2,"")) ->  | M8: ='1月'!M8 -> 2 | N8: ='1月'!N8 -> 外食費 | O8: =SUMIF(J$8:J37,M8,H$8:H37) -> 24360
C9: =IF(OR(LEFT(D9,1)="*",LEFT(D9,1)="＊"),G9,"") ->  | D9: 木下家葬儀御霊前 | F9: =IF(OR(LEFT(D9,1)="*",LEFT(D9,1)="＊"),H9,"") ->  | H9: 10000 | I9: =$I$7+SUM($G$8:G9)-SUM($H$8:H9) -> 152762 | J9: 9 | K9: 交際費 | M9: ='1月'!M9 -> 3 | N9: ='1月'!N9 -> 住居費 | O9: =SUMIF(J$8:J37,M9,H$8:H37) -> 75000
B10: 7 | D10: ローボード＆カラーボックス | F10: =IF(OR(LEFT(D10,1)="*",LEFT(D10,1)="＊"),H10,"") ->  | H10: 23900 | I10: =$I$7+SUM($G$8:G10)-SUM($H$8:H10) -> 128862 | J10: 17 | K10: 雑貨日用品 | M10: ='1月'!M10 -> 4 | N10: ='1月'!N10 -> 水道光熱費 | O10: =SUMIF(J$8:J37,M10,H$8:H37) -> 22070
B11: 8 | D11: ウェスト | F11: =IF(OR(LEFT(D11,1)="*",LEFT(D11,1)="＊"),H11,"") ->  | H11: 10130 | I11: =$I$7+SUM($G$8:G11)-SUM($H$8:H11) -> 118732 | J11: 2 | K11: 外食費 | M11: ='1月'!M11 -> 5 | N11: ='1月'!N11 -> 被服費 | O11: =SUMIF(J$8:J37,M11,H$8:H37) -> 0
B12: 10 | D12: パパ ２月分 | H12: 20000 | I12: =$I$7+SUM($G$8:G12)-SUM($H$8:H12) -> 98732 | J12: 7 | K12: お小遣い | M12: ='1月'!M12 -> 6 | N12: ='1月'!N12 -> 教育費 | O12: =SUMIF(J$8:J37,M12,H$8:H37) -> 35600
B13: 15 | D13: 食材 ダイエー | H13: 8184 | I13: =$I$7+SUM($G$8:G13)-SUM($H$8:H13) -> 90548 | J13: 1 | K13: 食材飲料費 | M13: ='1月'!M13 -> 7 | N13: ='1月'!N13 -> お小遣い | O13: =SUMIF(J$8:J37,M13,H$8:H37) -> 23000
D14: ガソリン代 キグナス肥後 | H14: 8540 | I14: =$I$7+SUM($G$8:G14)-SUM($H$8:H14) -> 82008 | J14: 20 | K14: =IF(J14<>0,VLOOKUP(J14,M$7:N$36,2,FALSE),"") -> 車両費 | M14: ='1月'!M14 -> 8 | N14: ='1月'!N14 -> 通信ＩＴ費 | O14: =SUMIF(J$8:J37,M14,H$8:H37) -> 7070
B15: 20 | D15: 食材 ダイエー | H15: 7124 | I15: =$I$7+SUM($G$8:G15)-SUM($H$8:H15) -> 74884 | J15: 1 | K15: =IF(J15<>0,VLOOKUP(J15,M$7:N$36,2,FALSE),"") -> 食材飲料費 | M15: ='1月'!M15 -> 9 | N15: ='1月'!N15 -> 交際費 | O15: =SUMIF(J$8:J37,M15,H$8:H37) -> 10000
D16: 塾費 太郎学習塾 | H16: 15000 | I16: =$I$7+SUM($G$8:G16)-SUM($H$8:H16) -> 59884 | J16: 6 | K16: 教育費 | M16: ='1月'!M16 -> 10 | N16: ='1月'!N16 -> 趣味娯楽費 | O16: =SUMIF(J$8:J37,M16,H$8:H37) -> 0
D17: 塾費 花子バレー教室 | H17: 8000 | I17: =$I$7+SUM($G$8:G17)-SUM($H$8:H17) -> 51884 | J17: 6 | K17: 教育費 | M17: ='1月'!M17 -> 11 | N17: ='1月'!N17 -> 社会保険料 | O17: =SUMIF(J$8:J37,M17,H$8:H37) -> 0
D18: ママパートお給料 １月分 | G18: 34400 | I18: =$I$7+SUM($G$8:G18)-SUM($H$8:H18) -> 86284 | M18: ='1月'!M18 -> 12 | N18: ='1月'!N18 -> 其他保険料 | O18: =SUMIF(J$8:J37,M18,H$8:H37) -> 12000
D19: お小遣い 太郎 | H19: 2000 | I19: =$I$7+SUM($G$8:G19)-SUM($H$8:H19) -> 84284 | J19: 7 | K19: お小遣い | M19: ='1月'!M19 -> 13 | N19: ='1月'!N19 -> 保健医療費 | O19: =SUMIF(J$8:J37,M19,H$8:H37) -> 0
C20: 12000 | D20: *口座引落額を記帳分等の引当（ 1 件分） | F20: 0 | G20: 12000 | I20: =$I$7+SUM($G$8:G20)-SUM($H$8:H20) -> 96284 | M20: ='1月'!M20 -> 14 | N20: ='1月'!N20 -> 税金 | O20: =SUMIF(J$8:J37,M20,H$8:H37) -> 0
C21: 0 | D21: *生命保険料 ２月分 明治生命 | F21: 12000 | H21: 12000 | I21: =$I$7+SUM($G$8:G21)-SUM($H$8:H21) -> 84284 | J21: 12 | K21: 其他保険料 | M21: ='1月'!M21 -> 15 | N21: ='1月'!N21 -> 交通費 | O21: =SUMIF(J$8:J37,M21,H$8:H37) -> 0
B22: 22 | D22: 食材 ダイエー | H22: 8527 | I22: =$I$7+SUM($G$8:G22)-SUM($H$8:H22) -> 75757 | J22: 1 | K22: 食材飲料費 | M22: ='1月'!M22 -> 16 | N22: ='1月'!N22 -> 支払手数料 | O22: =SUMIF(J$8:J37,M22,H$8:H37) -> 0
B23: 25 | D23: お小遣い 花子 | H23: 1000 | I23: =$I$7+SUM($G$8:G23)-SUM($H$8:H23) -> 74757 | J23: 7 | K23: お小遣い | M23: ='1月'!M23 -> 17 | N23: ='1月'!N23 -> 雑貨日用品 | O23: =SUMIF(J$8:J37,M23,H$8:H37) -> 23900
C24: 29140 | D24: *口座引落額を記帳分等の引当（ 5 件分） | F24: 0 | G24: 29140 | I24: =$I$7+SUM($G$8:G24)-SUM($H$8:H24) -> 103897 | M24: ='1月'!M24 -> 18 | N24: ='1月'!N24 -> 消耗品費 | O24: =SUMIF(J$8:J37,M24,H$8:H37) -> 670
C25: 0 | D25: *自動引き落とし 電気料 | F25: 11350 | H25: 11350 | I25: =$I$7+SUM($G$8:G25)-SUM($H$8:H25) -> 92547 | J25: 4 | K25: 水道光熱費 | M25: ='1月'!M25 -> 19 | N25: ='1月'!N25 -> 冠婚葬祭費 | O25: =SUMIF(J$8:J37,M25,H$8:H37) -> 0
C26: 0 | D26: *自動引き落とし 上下水道料 | F26: 8040 | H26: 8040 | I26: =$I$7+SUM($G$8:G26)-SUM($H$8:H26) -> 84507 | J26: 4 | K26: 水道光熱費 | M26: ='1月'!M26 -> 20 | N26: ='1月'!N26 -> 車両費 | O26: =SUMIF(J$8:J37,M26,H$8:H37) -> 8540
C27: 0 | D27: *自動引き落とし ガス代 | F27: 2680 | H27: 2680 | I27: =$I$7+SUM($G$8:G27)-SUM($H$8:H27) -> 81827 | J27: 4 | K27: 水道光熱費 | M27: ='1月'!M27 -> 21 | N27: ='1月'!N27 -> 雑費 | O27: =SUMIF(J$8:J37,M27,H$8:H37) -> 0
C28: 0 | D28: *VISAカード決済 NTT回線料・通話料 | F28: 5970 | H28: 5970 | I28: =$I$7+SUM($G$8:G28)-SUM($H$8:H28) -> 75857 | J28: 8 | K28: 通信ＩＴ費 | M28: ='1月'!M28 -> 22 | N28: ='1月'!N28 -> 0 | O28: =SUMIF(J$8:J37,M28,H$8:H37) -> 0
C29: 0 | D29: *VISAカード決済 niftyプロバイダ料 | F29: 1100 | H29: 1100 | I29: =$I$7+SUM($G$8:G29)-SUM($H$8:H29) -> 74757 | J29: 8 | K29: 通信ＩＴ費 | M29: ='1月'!M29 -> 23 | N29: ='1月'!N29 -> 0 | O29: =SUMIF(J$8:J37,M29,H$8:H37) -> 0
B30: 28 | D30: 衣装代 花子バレー教室 | H30: 12600 | I30: =$I$7+SUM($G$8:G30)-SUM($H$8:H30) -> 62157 | J30: 6 | K30: 教育費 | M30: ='1月'!M30 -> 24 | N30: ='1月'!N30 -> 0 | O30: =SUMIF(J$8:J37,M30,H$8:H37) -> 0
D31: ウエストにて焼肉 | H31: 5586 | I31: =$I$7+SUM($G$8:G31)-SUM($H$8:H31) -> 56571 | J31: 1 | K31: 食材飲料費 | M31: ='1月'!M31 -> 25 | N31: ='1月'!N31 -> 0 | O31: =SUMIF(J$8:J37,M31,H$8:H37) -> 0
D32: ポプコーン他 セブンイレブン | H32: 530 | I32: =$I$7+SUM($G$8:G32)-SUM($H$8:H32) -> 56041 | J32: 1 | K32: 食材飲料費 | M32: ='1月'!M32 -> 26 | N32: ='1月'!N32 -> 0 | O32: =SUMIF(J$8:J37,M32,H$8:H37) -> 0
D33: 手元現金準備 肥後銀行口座より | G33: 350000 | I33: =$I$7+SUM($G$8:G33)-SUM($H$8:H33) -> 406041 | M33: ='1月'!M33 -> 27 | N33: ='1月'!N33 -> 0 | O33: =SUMIF(J$8:J37,M33,H$8:H37) -> 0
D34: 食材 ダイエー | H34: 14230 | I34: =$I$7+SUM($G$8:G34)-SUM($H$8:H34) -> 391811 | J34: 2 | K34: 外食費 | M34: ='1月'!M34 -> 28 | N34: ='1月'!N34 -> 0 | O34: =SUMIF(J$8:J37,M34,H$8:H37) -> 0
D35: ３月分家賃 山田様 | H35: 75000 | I35: =$I$7+SUM($G$8:G35)-SUM($H$8:H35) -> 316811 | J35: 3 | K35: 住居費 | M35: ='1月'!M35 -> 29 | N35: ='1月'!N35 -> 使途不明金 | O35: =SUMIF(J$8:J37,M35,H$8:H37) -> 0
D36: 洗剤他 ドラッグスター | H36: 670 | I36: =$I$7+SUM($G$8:G36)-SUM($H$8:H36) -> 316141 | J36: 18 | K36: 消耗品費 | M36: ='1月'!M36 -> 30 | N36: ='1月'!N36 -> その他 | O36: =SUMIF(J$8:J37,M36,H$8:H37) -> 0
I37: =$I$7+SUM($G$8:G37)-SUM($H$8:H37) -> 316141 | N37: =IF(SUM(O7:O36)=0,"","合 計") -> 合 計 | O37: =IF(SUM(O7:O36)=0,"",SUM(O7:O36)) -> 287920
C38: 自動振替処理が未済です | E38: 月 計 | G38: =SUM(G$8:G37) -> 425540 | H38: =SUM(H$8:H37) -> 287920
F39: 前月残高 | G39: =I7 -> 178521
F40: 当月残高 | H40: =I37 -> 316141
F41: 合 計 | G41: =SUM(G38:G40) -> 604061 | H41: =SUM(H38:H40) -> 604061
F43: （月計の内訳）
F44: 現 金 | G44: =G38-G45 -> 384400 | H44: =H38-H45 -> 246780
F45: 預貯金振替 | G45: =$C$7 -> 41140 | H45: =$F$6 -> 41140
F46: =IF(OR(LEFT(D46,1)="*",LEFT(D46,1)="＊"),H46,"") -> 

Sheet 3月
G2: 月 度 現 金 出 納 帳
D3: ='1月'!D3 -> 2012 | I3: ='1月'!$I$3:$K$3 -> わがやの家計簿 | L3: ↓ | N3: ↓ 費 目 振 分 未 済
A4: =A7&G2 -> 3 月 度 現 金 出 納 帳 | M4: 費 目 別 集 計 表
A6: 月 | B6: 日 | D6: 摘 要 | F6: =SUM($F$8:F37) -> 43000 | G6: 入 金 | H6: 出 金 | I6: 残 高 | J6: № | K6: 費 目 名 | M6: № | N6: 費 目 名 | O6: 出金計
A7: =IF('2月'!A7+1<=12,'2月'!A7+1,'2月'!A7+1-12) -> 3 | B7: 1 | C7: =SUM($C$8:C37) -> 43000 | F7: 前月より繰越 | I7: ='2月'!H40 -> 316141 | J7: - | K7: * * * * * | L7: =MAX(L8:L37) -> 0 | M7: ='1月'!M7 -> 1 | N7: ='1月'!N7 -> 食材飲料費 | O7: =SUMIF(J$8:J$37,M7,H$8:H$37) -> 59436
B8: 2 | C8: =IF(OR(LEFT(D8,1)="*",LEFT(D8,1)="＊"),G8,"") ->  | D8: 食材 ダイエー | F8: =IF(OR(LEFT(D8,1)="*",LEFT(D8,1)="＊"),H8,"") ->  | H8: 6803 | I8: =$I$7+SUM($G$8:G8)-SUM($H$8:H8) -> 309338 | J8: 1 | K8: =IF(J8<>0,VLOOKUP(J8,M$7:N$36,2,FALSE),"") -> 食材飲料費 | L8: =IF(I8<0,1,IF(AND(G8<>"",H8<>""),2,"")) ->  | M8: ='1月'!M8 -> 2 | N8: ='1月'!N8 -> 外食費 | O8: 13540
C9: =IF(OR(LEFT(D9,1)="*",LEFT(D9,1)="＊"),G9,"") ->  | D9: 鉢・苗・肥料代 | F9: =IF(OR(LEFT(D9,1)="*",LEFT(D9,1)="＊"),H9,"") ->  | H9: 3670 | I9: =$I$7+SUM($G$8:G9)-SUM($H$8:H9) -> 305668 | J9: 10 | K9: 趣味娯楽費 | M9: ='1月'!M9 -> 3 | N9: ='1月'!N9 -> 住居費 | O9: 75000
B10: 5 | D10: 食材 ダイエー | F10: =IF(OR(LEFT(D10,1)="*",LEFT(D10,1)="＊"),H10,"") ->  | H10: 6532 | I10: =$I$7+SUM($G$8:G10)-SUM($H$8:H10) -> 299136 | J10: 1 | K10: 食材飲料費 | M10: ='1月'!M10 -> 4 | N10: ='1月'!N10 -> 水道光熱費 | O10: 23930
B11: 6 | D11: 山崎さんへ手土産 とら家 | F11: =IF(OR(LEFT(D11,1)="*",LEFT(D11,1)="＊"),H11,"") ->  | H11: 3000 | I11: =$I$7+SUM($G$8:G11)-SUM($H$8:H11) -> 296136 | J11: 9 | K11: 交際費 | M11: ='1月'!M11 -> 5 | N11: ='1月'!N11 -> 被服費 | O11: 7530
B12: 7 | D12: 太郎誕生祝いで回転寿司へ | H12: 13540 | I12: =$I$7+SUM($G$8:G12)-SUM($H$8:H12) -> 282596 | J12: 2 | K12: 外食費 | M12: ='1月'!M12 -> 6 | N12: ='1月'!N12 -> 教育費 | O12: 23000
D13: パパ ３月分 | H13: 20000 | I13: =$I$7+SUM($G$8:G13)-SUM($H$8:H13) -> 262596 | J13: 7 | K13: お小遣い | M13: ='1月'!M13 -> 7 | N13: ='1月'!N13 -> お小遣い | O13: 24000
B14: 10 | D14: 食材 ダイエー | H14: 5684 | I14: =$I$7+SUM($G$8:G14)-SUM($H$8:H14) -> 256912 | J14: 1 | K14: =IF(J14<>0,VLOOKUP(J14,M$7:N$36,2,FALSE),"") -> 食材飲料費 | M14: ='1月'!M14 -> 8 | N14: ='1月'!N14 -> 通信ＩＴ費 | O14: 7070
D15: ガソリン代 キグナス肥後 | H15: 7634 | I15: =$I$7+SUM($G$8:G15)-SUM($H$8:H15) -> 249278 | J15: 20 | K15: =IF(J15<>0,VLOOKUP(J15,M$7:N$36,2,FALSE),"") -> 車両費 | M15: ='1月'!M15 -> 9 | N15: ='1月'!N15 -> 交際費 | O15: 3000
B16: 15 | D16: 食材 ダイエー | H16: 10256 | I16: =$I$7+SUM($G$8:G16)-SUM($H$8:H16) -> 239022 | J16: 1 | K16: 食材飲料費 | M16: ='1月'!M16 -> 10 | N16: ='1月'!N16 -> 趣味娯楽費 | O16: 3670
D17: 塾費 太郎学習塾 | H17: 15000 | I17: =$I$7+SUM($G$8:G17)-SUM($H$8:H17) -> 224022 | J17: 6 | K17: 教育費 | M17: ='1月'!M17 -> 11 | N17: ='1月'!N17 -> 社会保険料 | O17: 0
D18: 塾費 花子バレー教室 | H18: 8000 | I18: =$I$7+SUM($G$8:G18)-SUM($H$8:H18) -> 216022 | J18: 6 | K18: 教育費 | M18: ='1月'!M18 -> 12 | N18: ='1月'!N18 -> 其他保険料 | O18: 12000
B19: 20 | D19: ママパートお給料 ２月分 | G19: 36580 | I19: =$I$7+SUM($G$8:G19)-SUM($H$8:H19) -> 252602 | M19: ='1月'!M19 -> 13 | N19: ='1月'!N19 -> 保健医療費 | O19: 0
D20: お小遣い 太郎 | H20: 3000 | I20: =$I$7+SUM($G$8:G20)-SUM($H$8:H20) -> 249602 | J20: 7 | K20: お小遣い | M20: ='1月'!M20 -> 14 | N20: ='1月'!N20 -> 税金 | O20: 0
D21: お小遣い 花子 | H21: 1000 | I21: =$I$7+SUM($G$8:G21)-SUM($H$8:H21) -> 248602 | J21: 7 | K21: お小遣い | M21: ='1月'!M21 -> 15 | N21: ='1月'!N21 -> 交通費 | O21: 0
D22: 食材 ダイエー | H22: 11865 | I22: =$I$7+SUM($G$8:G22)-SUM($H$8:H22) -> 236737 | J22: 1 | K22: 食材飲料費 | M22: ='1月'!M22 -> 16 | N22: ='1月'!N22 -> 支払手数料 | O22: 0
C23: 12000 | D23: *口座引落額を記帳分等の引当（ 1 件分） | F23: 0 | G23: 12000 | I23: =$I$7+SUM($G$8:G23)-SUM($H$8:H23) -> 248737 | M23: ='1月'!M23 -> 17 | N23: ='1月'!N23 -> 雑貨日用品 | O23: 0
C24: 0 | D24: *生命保険料 ３月分 明治生命 | F24: 12000 | H24: 12000 | I24: =$I$7+SUM($G$8:G24)-SUM($H$8:H24) -> 236737 | J24: 12 | K24: 其他保険料 | M24: ='1月'!M24 -> 18 | N24: ='1月'!N24 -> 消耗品費 | O24: 0
B25: 25 | D25: ４月分家賃 山田様 | H25: 75000 | I25: =$I$7+SUM($G$8:G25)-SUM($H$8:H25) -> 161737 | J25: 3 | K25: 住居費 | M25: ='1月'!M25 -> 19 | N25: ='1月'!N25 -> 冠婚葬祭費 | O25: 0
D26: 食材 ダイエー | H26: 9867 | I26: =$I$7+SUM($G$8:G26)-SUM($H$8:H26) -> 151870 | J26: 1 | K26: 食材飲料費 | M26: ='1月'!M26 -> 20 | N26: ='1月'!N26 -> 車両費 | O26: 7634
D27: 3月度積立金 | H27: 50000 | I27: =$I$7+SUM($G$8:G27)-SUM($H$8:H27) -> 101870 | J27: 30 | K27: その他 | M27: ='1月'!M27 -> 21 | N27: ='1月'!N27 -> 雑費 | O27: 0
C28: 31000 | D28: *口座引落額を記帳分等の引当（ 5 件分） | F28: 0 | G28: 31000 | I28: =$I$7+SUM($G$8:G28)-SUM($H$8:H28) -> 132870 | M28: ='1月'!M28 -> 22 | N28: ='1月'!N28 -> 0 | O28: 0
C29: 0 | D29: *自動引き落とし 電気料 | F29: 13050 | H29: 13050 | I29: =$I$7+SUM($G$8:G29)-SUM($H$8:H29) -> 119820 | J29: 4 | K29: 水道光熱費 | M29: ='1月'!M29 -> 23 | N29: ='1月'!N29 -> 0 | O29: 0
C30: 0 | D30: *自動引き落とし 上下水道料 | F30: 8200 | H30: 8200 | I30: =$I$7+SUM($G$8:G30)-SUM($H$8:H30) -> 111620 | J30: 4 | K30: 水道光熱費 | M30: ='1月'!M30 -> 24 | N30: ='1月'!N30 -> 0 | O30: 0
C31: 0 | D31: *自動引き落とし ガス代 | F31: 2680 | H31: 2680 | I31: =$I$7+SUM($G$8:G31)-SUM($H$8:H31) -> 108940 | J31: 4 | K31: 水道光熱費 | M31: ='1月'!M31 -> 25 | N31: ='1月'!N31 -> 0 | O31: 0
C32: 0 | D32: *VISAカード決済 NTT回線料・通話料 | F32: 5970 | H32: 5970 | I32: =$I$7+SUM($G$8:G32)-SUM($H$8:H32) -> 102970 | J32: 8 | K32: 通信ＩＴ費 | M32: ='1月'!M32 -> 26 | N32: ='1月'!N32 -> 0 | O32: 0
C33: 0 | D33: *VISAカード決済 niftyプロバイダ料 | F33: 1100 | H33: 1100 | I33: =$I$7+SUM($G$8:G33)-SUM($H$8:H33) -> 101870 | J33: 8 | K33: 通信ＩＴ費 | M33: ='1月'!M33 -> 27 | N33: ='1月'!N33 -> 0 | O33: 0
B34: 28 | D34: 食材 ダイエー | H34: 8429 | I34: =$I$7+SUM($G$8:G34)-SUM($H$8:H34) -> 93441 | J34: 1 | K34: 食材飲料費 | M34: ='1月'!M34 -> 28 | N34: ='1月'!N34 -> 0 | O34: 0
B35: 30 | D35: パパ カッターシャツ他 | H35: 7530 | I35: =$I$7+SUM($G$8:G35)-SUM($H$8:H35) -> 85911 | J35: 5 | K35: 被服費 | M35: ='1月'!M35 -> 29 | N35: ='1月'!N35 -> 使途不明金 | O35: 3
D36: 手元現金準備 | G36: 250000 | I36: =$I$7+SUM($G$8:G36)-SUM($H$8:H36) -> 335911 | M36: ='1月'!M36 -> 30 | N36: ='1月'!N36 -> その他 | O36: 50000
D37: 違算金 | H37: 3 | I37: =$I$7+SUM($G$8:G37)-SUM($H$8:H37) -> 335908 | J37: 29 | K37: 使途不明金 | N37: =IF(SUM(O7:O36)=0,"","合 計") -> 合 計 | O37: =IF(SUM(O7:O36)=0,"",SUM(O7:O36)) -> 309813
C38: =IF(OR(LEFT(D38,1)="*",LEFT(D38,1)="＊"),G38,"") ->  | E38: 月 計 | G38: =SUM(G$8:G37) -> 329580 | H38: =SUM(H$8:H37) -> 309813
F39: 前月残高 | G39: =I7 -> 316141
F40: 当月残高 | H40: =I37 -> 335908
F41: 合 計 | G41: =SUM(G38:G40) -> 645721 | H41: =SUM(H38:H40) -> 645721
F43: （月計の内訳）
F44: 現 金 | G44: =G38-G45 -> 286580 | H44: =H38-H45 -> 266813
F45: 預貯金振替 | G45: =$C$7 -> 43000 | H45: =$F$6 -> 43000

Sheet 4月
G2: 月 度 現 金 出 納 帳
D3: ='1月'!D3 -> 2012 | I3: ='1月'!$I$3:$K$3 -> わがやの家計簿 | L3: ↓ | N3: ↓ 費 目 振 分 未 済
A4: =A7&G2 -> 4 月 度 現 金 出 納 帳 | M4: 費 目 別 集 計 表
A6: 月 | B6: 日 | D6: 摘 要 | F6: =SUM($F$8:F37) -> 40130 | G6: 入 金 | H6: 出 金 | I6: 残 高 | J6: № | K6: 費 目 名 | M6: № | N6: 費 目 名 | O6: 出金計
A7: =IF('3月'!A7+1<=12,'3月'!A7+1,'3月'!A7+1-12) -> 4 | B7: 1 | C7: =SUM($C$8:C37) -> 40130 | F7: 前月より繰越 | I7: ='3月'!H40 -> 335908 | J7: - | K7: * * * * * | L7: =MAX(L8:L37) -> 0 | M7: ='1月'!M7 -> 1 | N7: ='1月'!N7 -> 食材飲料費 | O7: =SUMIF(J$8:J$37,M7,H$8:H$37) -> 76512
C8: =IF(OR(LEFT(D8,1)="*",LEFT(D8,1)="＊"),G8,"") ->  | D8: 食材 ダイエー | F8: =IF(OR(LEFT(D8,1)="*",LEFT(D8,1)="＊"),H8,"") ->  | H8: 12465 | I8: =$I$7+SUM($G$8:G8)-SUM($H$8:H8) -> 323443 | J8: 1 | K8: =IF(J8<>0,VLOOKUP(J8,M$7:N$36,2,FALSE),"") -> 食材飲料費 | L8: =IF(I8<0,1,IF(AND(G8<>"",H8<>""),2,"")) ->  | M8: ='1月'!M8 -> 2 | N8: ='1月'!N8 -> 外食費 | O8: 0
C9: =IF(OR(LEFT(D9,1)="*",LEFT(D9,1)="＊"),G9,"") ->  | D9: 洗剤他 ダイエー | F9: =IF(OR(LEFT(D9,1)="*",LEFT(D9,1)="＊"),H9,"") ->  | H9: 868 | I9: =$I$7+SUM($G$8:G9)-SUM($H$8:H9) -> 322575 | J9: 18 | K9: 消耗品費 | M9: ='1月'!M9 -> 3 | N9: ='1月'!N9 -> 住居費 | O9: 75000
B10: 4 | D10: 食材 ダイエー | F10: =IF(OR(LEFT(D10,1)="*",LEFT(D10,1)="＊"),H10,"") ->  | H10: 6548 | I10: =$I$7+SUM($G$8:G10)-SUM($H$8:H10) -> 316027 | J10: 1 | K10: 食材飲料費 | M10: ='1月'!M10 -> 4 | N10: ='1月'!N10 -> 水道光熱費 | O10: 21060
D11: ガソリン代 キグナス肥後 | F11: =IF(OR(LEFT(D11,1)="*",LEFT(D11,1)="＊"),H11,"") ->  | H11: 8530 | I11: =$I$7+SUM($G$8:G11)-SUM($H$8:H11) -> 307497 | J11: 20 | K11: 車両費 | M11: ='1月'!M11 -> 5 | N11: ='1月'!N11 -> 被服費 | O11: 0
B12: 5 | D12: パパ ４月分 | H12: 20000 | I12: =$I$7+SUM($G$8:G12)-SUM($H$8:H12) -> 287497 | J12: 7 | K12: お小遣い | M12: ='1月'!M12 -> 6 | N12: ='1月'!N12 -> 教育費 | O12: 0
B13: 8 | D13: 景子ちゃん 結婚祝い | H13: 50000 | I13: =$I$7+SUM($G$8:G13)-SUM($H$8:H13) -> 237497 | J13: 9 | K13: 交際費 | M13: ='1月'!M13 -> 7 | N13: ='1月'!N13 -> お小遣い | O13: 23000
D14: 食材 ダイエー | H14: 8467 | I14: =$I$7+SUM($G$8:G14)-SUM($H$8:H14) -> 229030 | J14: 1 | K14: =IF(J14<>0,VLOOKUP(J14,M$7:N$36,2,FALSE),"") -> 食材飲料費 | M14: ='1月'!M14 -> 8 | N14: ='1月'!N14 -> 通信ＩＴ費 | O14: 30070
B15: 9 | D15: フルーツ よしだ | H15: 2430 | I15: =$I$7+SUM($G$8:G15)-SUM($H$8:H15) -> 226600 | J15: 1 | K15: =IF(J15<>0,VLOOKUP(J15,M$7:N$36,2,FALSE),"") -> 食材飲料費 | M15: ='1月'!M15 -> 9 | N15: ='1月'!N15 -> 交際費 | O15: 50000
B16: 13 | D16: 食材 ダイエー | H16: 12035 | I16: =$I$7+SUM($G$8:G16)-SUM($H$8:H16) -> 214565 | J16: 1 | K16: 食材飲料費 | M16: ='1月'!M16 -> 10 | N16: ='1月'!N16 -> 趣味娯楽費 | O16: 0
B17: 20 | D17: ママパートお給料 ３月分 | G17: 36690 | I17: =$I$7+SUM($G$8:G17)-SUM($H$8:H17) -> 251255 | M17: ='1月'!M17 -> 11 | N17: ='1月'!N17 -> 社会保険料 | O17: 0
D18: お小遣い 太郎 | H18: 2000 | I18: =$I$7+SUM($G$8:G18)-SUM($H$8:H18) -> 249255 | J18: 7 | K18: お小遣い | M18: ='1月'!M18 -> 12 | N18: ='1月'!N18 -> 其他保険料 | O18: 12000
D19: お小遣い 花子 | H19: 1000 | I19: =$I$7+SUM($G$8:G19)-SUM($H$8:H19) -> 248255 | J19: 7 | K19: お小遣い | M19: ='1月'!M19 -> 13 | N19: ='1月'!N19 -> 保健医療費 | O19: 0
D20: 食材 ダイエー | H20: 6451 | I20: =$I$7+SUM($G$8:G20)-SUM($H$8:H20) -> 241804 | J20: 1 | K20: 食材飲料費 | M20: ='1月'!M20 -> 14 | N20: ='1月'!N20 -> 税金 | O20: 0
C21: 12000 | D21: *口座引落額を記帳分等の引当（ 1 件分） | F21: 0 | G21: 12000 | I21: =$I$7+SUM($G$8:G21)-SUM($H$8:H21) -> 253804 | M21: ='1月'!M21 -> 15 | N21: ='1月'!N21 -> 交通費 | O21: 0
C22: 0 | D22: *生命保険料 ４月分 明治生命 | F22: 12000 | H22: 12000 | I22: =$I$7+SUM($G$8:G22)-SUM($H$8:H22) -> 241804 | J22: 12 | K22: 其他保険料 | M22: ='1月'!M22 -> 16 | N22: ='1月'!N22 -> 支払手数料 | O22: 0
B23: 22 | D23: 食材 ダイエー | H23: 7544 | I23: =$I$7+SUM($G$8:G23)-SUM($H$8:H23) -> 234260 | J23: 1 | K23: 食材飲料費 | M23: ='1月'!M23 -> 17 | N23: ='1月'!N23 -> 雑貨日用品 | O23: 0
B24: 25 | D24: ５月分家賃 山田様 | H24: 75000 | I24: =$I$7+SUM($G$8:G24)-SUM($H$8:H24) -> 159260 | J24: 3 | K24: 住居費 | M24: ='1月'!M24 -> 18 | N24: ='1月'!N24 -> 消耗品費 | O24: 868
D25: 雅ちゃんに用立て分 返金受入 | G25: 100000 | I25: =$I$7+SUM($G$8:G25)-SUM($H$8:H25) -> 259260 | M25: ='1月'!M25 -> 19 | N25: ='1月'!N25 -> 冠婚葬祭費 | O25: 0
D26: ４月度積立金 | H26: 50000 | I26: =$I$7+SUM($G$8:G26)-SUM($H$8:H26) -> 209260 | J26: 30 | K26: その他 | M26: ='1月'!M26 -> 20 | N26: ='1月'!N26 -> 車両費 | O26: 8530
D27: 食材 ダイエー | H27: 7536 | I27: =$I$7+SUM($G$8:G27)-SUM($H$8:H27) -> 201724 | J27: 1 | K27: 食材飲料費 | M27: ='1月'!M27 -> 21 | N27: ='1月'!N27 -> 雑費 | O27: 0
C28: 28130 | D28: *口座引落額を記帳分等の引当（ 5 件分） | F28: 0 | G28: 28130 | I28: =$I$7+SUM($G$8:G28)-SUM($H$8:H28) -> 229854 | M28: ='1月'!M28 -> 22 | N28: ='1月'!N28 -> 0 | O28: 0
C29: 0 | D29: *自動引き落とし 電気料 | F29: 10050 | H29: 10050 | I29: =$I$7+SUM($G$8:G29)-SUM($H$8:H29) -> 219804 | J29: 4 | K29: 水道光熱費 | M29: ='1月'!M29 -> 23 | N29: ='1月'!N29 -> 0 | O29: 0
C30: 0 | D30: *自動引き落とし 上下水道料 | F30: 8330 | H30: 8330 | I30: =$I$7+SUM($G$8:G30)-SUM($H$8:H30) -> 211474 | J30: 4 | K30: 水道光熱費 | M30: ='1月'!M30 -> 24 | N30: ='1月'!N30 -> 0 | O30: 0
C31: 0 | D31: *自動引き落とし ガス代 | F31: 2680 | H31: 2680 | I31: =$I$7+SUM($G$8:G31)-SUM($H$8:H31) -> 208794 | J31: 4 | K31: 水道光熱費 | M31: ='1月'!M31 -> 25 | N31: ='1月'!N31 -> 0 | O31: 0
C32: 0 | D32: *VISAカード決済 NTT回線料・通話料 | F32: 5970 | H32: 5970 | I32: =$I$7+SUM($G$8:G32)-SUM($H$8:H32) -> 202824 | J32: 8 | K32: 通信ＩＴ費 | M32: ='1月'!M32 -> 26 | N32: ='1月'!N32 -> 0 | O32: 0
C33: 0 | D33: *VISAカード決済 niftyプロバイダ料 | F33: 1100 | H33: 1100 | I33: =$I$7+SUM($G$8:G33)-SUM($H$8:H33) -> 201724 | J33: 8 | K33: 通信ＩＴ費 | M33: ='1月'!M33 -> 27 | N33: ='1月'!N33 -> 0 | O33: 0
B34: 28 | D34: 食材 ダイエー | H34: 6604 | I34: =$I$7+SUM($G$8:G34)-SUM($H$8:H34) -> 195120 | J34: 1 | K34: 食材飲料費 | M34: ='1月'!M34 -> 28 | N34: ='1月'!N34 -> 0 | O34: 0
D35: 塾費 太郎学習塾 | H35: 15000 | I35: =$I$7+SUM($G$8:G35)-SUM($H$8:H35) -> 180120 | J35: 8 | K35: 通信ＩＴ費 | M35: ='1月'!M35 -> 29 | N35: ='1月'!N35 -> 使途不明金 | O35: 0
D36: 塾費 花子バレー教室 | H36: 8000 | I36: =$I$7+SUM($G$8:G36)-SUM($H$8:H36) -> 172120 | J36: 8 | K36: 通信ＩＴ費 | M36: ='1月'!M36 -> 30 | N36: ='1月'!N36 -> その他 | O36: 50000
B37: 30 | D37: 食材 ダイエー | H37: 6432 | I37: =$I$7+SUM($G$8:G37)-SUM($H$8:H37) -> 165688 | J37: 1 | K37: 食材飲料費 | N37: =IF(SUM(O7:O36)=0,"","合 計") -> 合 計 | O37: =IF(SUM(O7:O36)=0,"",SUM(O7:O36)) -> 347040
C38: 自動振替処理が未済です | E38: 月 計 | G38: =SUM(G$8:G37) -> 176820 | H38: =SUM(H$8:H37) -> 347040
F39: 前月残高 | G39: =I7 -> 335908
F40: 当月残高 | H40: =I37 -> 165688
F41: 合 計 | G41: =SUM(G38:G40) -> 512728 | H41: =SUM(H38:H40) -> 512728
F43: （月計の内訳）
F44: 現 金 | G44: =G38-G45 -> 136690 | H44: =H38-H45 -> 306910
F45: 預貯金振替 | G45: =$C$7 -> 40130 | H45: =$F$6 -> 40130

Sheet 5月
G2: 月 度 現 金 出 納 帳
D3: ='1月'!D3 -> 2012 | E3: =IF(L7=1,"エラー(マイナス残高)です",IF(L7=2,"入金と出金は別行に記入してください","")) ->  | I3: ='1月'!$I$3:$K$3 -> わがやの家計簿 | L3: ↓ | N3: ↓ 費 目 振 分 未 済
A4: =A7&G2 -> 5 月 度 現 金 出 納 帳 | M4: 費 目 別 集 計 表
A6: 月 | B6: 日 | D6: 摘 要 | F6: =SUM($F$8:F37) -> 43010 | G6: 入 金 | H6: 出 金 | I6: 残 高 | J6: № | K6: 費 目 名 | M6: № | N6: 費 目 名 | O6: 出金計
A7: =IF('4月'!A7+1<=12,'4月'!A7+1,'4月'!A7+1-12) -> 5 | B7: 1 | C7: =SUM($C$8:C37) -> 43010 | F7: 前月より繰越 | I7: ='4月'!H40 -> 165688 | J7: - | K7: * * * * * | L7: =MAX(L8:L37) -> 0 | M7: ='1月'!M7 -> 1 | N7: ='1月'!N7 -> 食材飲料費 | O7: =SUMIF(J$8:J$37,M7,H$8:H$37) -> 41074
C8: =IF(OR(LEFT(D8,1)="*",LEFT(D8,1)="＊"),G8,"") ->  | D8: 食材 ダイエー | F8: =IF(OR(LEFT(D8,1)="*",LEFT(D8,1)="＊"),H8,"") ->  | H8: 12387 | I8: =$I$7+SUM($G$8:G8)-SUM($H$8:H8) -> 153301 | J8: 1 | K8: =IF(J8<>0,VLOOKUP(J8,M$7:N$36,2,FALSE),"") -> 食材飲料費 | L8: =IF(I8<0,1,IF(AND(G8<>"",H8<>""),2,"")) ->  | M8: ='1月'!M8 -> 2 | N8: ='1月'!N8 -> 外食費 | O8: 20776
B9: 4 | C9: =IF(OR(LEFT(D9,1)="*",LEFT(D9,1)="＊"),G9,"") ->  | D9: 鬼太郎 | F9: =IF(OR(LEFT(D9,1)="*",LEFT(D9,1)="＊"),H9,"") ->  | H9: 7356 | I9: =$I$7+SUM($G$8:G9)-SUM($H$8:H9) -> 145945 | J9: 2 | K9: 外食費 | M9: ='1月'!M9 -> 3 | N9: ='1月'!N9 -> 住居費 | O9: 75000
B10: 10 | C10: =IF(OR(LEFT(D10,1)="*",LEFT(D10,1)="＊"),G10,"") ->  | D10: パパ ５月分 | F10: =IF(OR(LEFT(D10,1)="*",LEFT(D10,1)="＊"),H10,"") ->  | H10: 20000 | I10: =$I$7+SUM($G$8:G10)-SUM($H$8:H10) -> 125945 | J10: 7 | K10: お小遣い | M10: ='1月'!M10 -> 4 | N10: ='1月'!N10 -> 水道光熱費 | O10: 23940
B11: 15 | D11: 食材 ダイエー | H11: 8254 | I11: =$I$7+SUM($G$8:G11)-SUM($H$8:H11) -> 117691 | J11: 1 | K11: 食材飲料費 | M11: ='1月'!M11 -> 5 | N11: ='1月'!N11 -> 被服費 | O11: 0
D12: ガソリン代 キグナス肥後 | H12: 4640 | I12: =$I$7+SUM($G$8:G12)-SUM($H$8:H12) -> 113051 | J12: 20 | K12: 車両費 | M12: ='1月'!M12 -> 6 | N12: ='1月'!N12 -> 教育費 | O12: 23000
B13: 20 | D13: 食材 ダイエー | H13: 4217 | I13: =$I$7+SUM($G$8:G13)-SUM($H$8:H13) -> 108834 | J13: 1 | K13: 食材飲料費 | M13: ='1月'!M13 -> 7 | N13: ='1月'!N13 -> お小遣い | O13: 23000
D14: 塾費 太郎学習塾 | H14: 15000 | I14: =$I$7+SUM($G$8:G14)-SUM($H$8:H14) -> 93834 | J14: 6 | K14: =IF(J14<>0,VLOOKUP(J14,M$7:N$36,2,FALSE),"") -> 教育費 | M14: ='1月'!M14 -> 8 | N14: ='1月'!N14 -> 通信ＩＴ費 | O14: 7070
D15: 塾費 花子バレー教室 | H15: 8000 | I15: =$I$7+SUM($G$8:G15)-SUM($H$8:H15) -> 85834 | J15: 6 | K15: =IF(J15<>0,VLOOKUP(J15,M$7:N$36,2,FALSE),"") -> 教育費 | M15: ='1月'!M15 -> 9 | N15: ='1月'!N15 -> 交際費 | O15: 0
D16: ママパートお給料 ４月分 | G16: 36800 | I16: =$I$7+SUM($G$8:G16)-SUM($H$8:H16) -> 122634 | M16: ='1月'!M16 -> 10 | N16: ='1月'!N16 -> 趣味娯楽費 | O16: 0
D17: お小遣い 太郎 | H17: 2000 | I17: =$I$7+SUM($G$8:G17)-SUM($H$8:H17) -> 120634 | J17: 7 | K17: お小遣い | M17: ='1月'!M17 -> 11 | N17: ='1月'!N17 -> 社会保険料 | O17: 0
C18: 12000 | D18: *口座引落額を記帳分等の引当（ 1 件分） | F18: 0 | G18: 12000 | I18: =$I$7+SUM($G$8:G18)-SUM($H$8:H18) -> 132634 | M18: ='1月'!M18 -> 12 | N18: ='1月'!N18 -> 其他保険料 | O18: 12000
C19: =IF(OR(LEFT(D19,1)="*",LEFT(D19,1)="＊"),G19,"") -> 0 | D19: *生命保険料 ５月分 明治生命 | F19: =IF(OR(LEFT(D19,1)="*",LEFT(D19,1)="＊"),H19,"") -> 12000 | H19: 12000 | I19: =$I$7+SUM($G$8:G19)-SUM($H$8:H19) -> 120634 | J19: 12 | K19: 其他保険料 | M19: ='1月'!M19 -> 13 | N19: ='1月'!N19 -> 保健医療費 | O19: 0
B20: 22 | D20: 食材 ダイエー | H20: 9634 | I20: =$I$7+SUM($G$8:G20)-SUM($H$8:H20) -> 111000 | J20: 1 | K20: 食材飲料費 | M20: ='1月'!M20 -> 14 | N20: ='1月'!N20 -> 税金 | O20: 0
B21: 25 | D21: お小遣い 花子 | H21: 1000 | I21: =$I$7+SUM($G$8:G21)-SUM($H$8:H21) -> 110000 | J21: 7 | K21: お小遣い | M21: ='1月'!M21 -> 15 | N21: ='1月'!N21 -> 交通費 | O21: 0
D22: 手元現金準備 | G22: 100000 | I22: =$I$7+SUM($G$8:G22)-SUM($H$8:H22) -> 210000 | M22: ='1月'!M22 -> 16 | N22: ='1月'!N22 -> 支払手数料 | O22: 0
C23: 31010 | D23: *口座引落額を記帳分等の引当（ 5 件分） | F23: 0 | G23: 31010 | I23: =$I$7+SUM($G$8:G23)-SUM($H$8:H23) -> 241010 | M23: ='1月'!M23 -> 17 | N23: ='1月'!N23 -> 雑貨日用品 | O23: 0
C24: =IF(OR(LEFT(D24,1)="*",LEFT(D24,1)="＊"),G24,"") -> 0 | D24: *自動引き落とし 電気料 | F24: =IF(OR(LEFT(D24,1)="*",LEFT(D24,1)="＊"),H24,"") -> 13510 | H24: 13510 | I24: =$I$7+SUM($G$8:G24)-SUM($H$8:H24) -> 227500 | J24: 4 | K24: 水道光熱費 | M24: ='1月'!M24 -> 18 | N24: ='1月'!N24 -> 消耗品費 | O24: 0
C25: 0 | D25: *自動引き落とし 上下水道料 | F25: 7750 | H25: 7750 | I25: =$I$7+SUM($G$8:G25)-SUM($H$8:H25) -> 219750 | J25: 4 | K25: 水道光熱費 | M25: ='1月'!M25 -> 19 | N25: ='1月'!N25 -> 冠婚葬祭費 | O25: 0
C26: 0 | D26: *自動引き落とし ガス代 | F26: 2680 | H26: 2680 | I26: =$I$7+SUM($G$8:G26)-SUM($H$8:H26) -> 217070 | J26: 4 | K26: 水道光熱費 | M26: ='1月'!M26 -> 20 | N26: ='1月'!N26 -> 車両費 | O26: 4640
C27: 0 | D27: *VISAカード決済 NTT回線料・通話料 | F27: 5970 | H27: 5970 | I27: =$I$7+SUM($G$8:G27)-SUM($H$8:H27) -> 211100 | J27: 8 | K27: 通信ＩＴ費 | M27: ='1月'!M27 -> 21 | N27: ='1月'!N27 -> 雑費 | O27: 0
C28: 0 | D28: *VISAカード決済 niftyプロバイダ料 | F28: 1100 | H28: 1100 | I28: =$I$7+SUM($G$8:G28)-SUM($H$8:H28) -> 210000 | J28: 8 | K28: 通信ＩＴ費 | M28: ='1月'!M28 -> 22 | N28: ='1月'!N28 -> 0 | O28: 0
B29: 28 | D29: 一休 | H29: 6348 | I29: =$I$7+SUM($G$8:G29)-SUM($H$8:H29) -> 203652 | J29: 1 | K29: 食材飲料費 | M29: ='1月'!M29 -> 23 | N29: ='1月'!N29 -> 0 | O29: 0
D30: 菓子他 セブンイレブン | H30: 234 | I30: =$I$7+SUM($G$8:G30)-SUM($H$8:H30) -> 203418 | J30: 1 | K30: 食材飲料費 | M30: ='1月'!M30 -> 24 | N30: ='1月'!N30 -> 0 | O30: 0
D31: 食材 ダイエー | H31: 13420 | I31: =$I$7+SUM($G$8:G31)-SUM($H$8:H31) -> 189998 | J31: 2 | K31: 外食費 | M31: ='1月'!M31 -> 25 | N31: ='1月'!N31 -> 0 | O31: 0
D32: ３月分家賃 山田様 | H32: 75000 | I32: =$I$7+SUM($G$8:G32)-SUM($H$8:H32) -> 114998 | J32: 3 | K32: 住居費 | M32: ='1月'!M32 -> 26 | N32: ='1月'!N32 -> 0 | O32: 0
I33: =$I$7+SUM($G$8:G33)-SUM($H$8:H33) -> 114998 | M33: ='1月'!M33 -> 27 | N33: ='1月'!N33 -> 0 | O33: 0
I34: =$I$7+SUM($G$8:G34)-SUM($H$8:H34) -> 114998 | M34: ='1月'!M34 -> 28 | N34: ='1月'!N34 -> 0 | O34: 0
I35: =$I$7+SUM($G$8:G35)-SUM($H$8:H35) -> 114998 | M35: ='1月'!M35 -> 29 | N35: ='1月'!N35 -> 使途不明金 | O35: 0
I36: =$I$7+SUM($G$8:G36)-SUM($H$8:H36) -> 114998 | M36: ='1月'!M36 -> 30 | N36: ='1月'!N36 -> その他 | O36: 0
I37: =$I$7+SUM($G$8:G37)-SUM($H$8:H37) -> 114998 | N37: =IF(SUM(O7:O36)=0,"","合 計") -> 合 計 | O37: =IF(SUM(O7:O36)=0,"",SUM(O7:O36)) -> 230500
C38: 自動振替処理が未済です | E38: 月 計 | G38: =SUM(G$8:G37) -> 179810 | H38: =SUM(H$8:H37) -> 230500
F39: 前月残高 | G39: =I7 -> 165688
F40: 当月残高 | H40: =I37 -> 114998
F41: 合 計 | G41: =SUM(G38:G40) -> 345498 | H41: =SUM(H38:H40) -> 345498
F43: （月計の内訳）
F44: 現 金 | G44: =G38-G45 -> 136800 | H44: =H38-H45 -> 187490
F45: 預貯金振替 | G45: =$C$7 -> 43010 | H45: =$F$6 -> 43010

Sheet 6月
N1: =C7 -> 0
G2: 月 度 現 金 出 納 帳 | N2: =F6 -> 0
D3: ='1月'!D3 -> 2012 | E3: =IF(L7=1,"エラー(マイナス残高)です",IF(L7=2,"入金と出金は別行に記入してください","")) ->  | I3: ='1月'!$I$3:$K$3 -> わがやの家計簿 | L3: ↓ | N3: ↓ 費 目 振 分 未 済
A4: =A7&G2 -> 6 月 度 現 金 出 納 帳 | M4: 費 目 別 集 計 表
A6: 月 | B6: 日 | D6: 摘 要 | F6: =SUM($F$8:F37) -> 0 | G6: 入 金 | H6: 出 金 | I6: 残 高 | J6: № | K6: 費 目 名 | M6: № | N6: 費 目 名 | O6: 出金計
A7: =IF('5月'!A7+1<=12,'5月'!A7+1,'5月'!A7+1-12) -> 6 | B7: 1 | C7: =SUM($C$8:C37) -> 0 | F7: 前月より繰越 | I7: ='5月'!H40 -> 114998 | J7: - | K7: * * * * * | L7: =MAX(L8:L37) -> 0 | M7: ='1月'!M7 -> 1 | N7: ='1月'!N7 -> 食材飲料費 | O7: =SUMIF(J$8:J$37,M7,H$8:H$37) -> 0
C8: =IF(OR(LEFT(D8,1)="*",LEFT(D8,1)="＊"),G8,"") ->  | F8: =IF(OR(LEFT(D8,1)="*",LEFT(D8,1)="＊"),H8,"") ->  | I8: =$I$7+SUM($G$8:G8)-SUM($H$8:H8) -> 114998 | K8: =IF(J8<>0,VLOOKUP(J8,M$7:N$36,2,FALSE),"") ->  | L8: =IF(I8<0,1,IF(AND(G8<>"",H8<>""),2,"")) ->  | M8: ='1月'!M8 -> 2 | N8: ='1月'!N8 -> 外食費 | O8: 0
C9: =IF(OR(LEFT(D9,1)="*",LEFT(D9,1)="＊"),G9,"") ->  | I9: =$I$7+SUM($G$8:G9)-SUM($H$8:H9) -> 114998 | M9: ='1月'!M9 -> 3 | N9: ='1月'!N9 -> 住居費 | O9: 0
I10: =$I$7+SUM($G$8:G10)-SUM($H$8:H10) -> 114998 | M10: ='1月'!M10 -> 4 | N10: ='1月'!N10 -> 水道光熱費 | O10: 0
F11: =IF(OR(LEFT(D11,1)="*",LEFT(D11,1)="＊"),H11,"") ->  | I11: =$I$7+SUM($G$8:G11)-SUM($H$8:H11) -> 114998 | M11: ='1月'!M11 -> 5 | N11: ='1月'!N11 -> 被服費 | O11: 0
I12: =$I$7+SUM($G$8:G12)-SUM($H$8:H12) -> 114998 | M12: ='1月'!M12 -> 6 | N12: ='1月'!N12 -> 教育費 | O12: 0
I13: =$I$7+SUM($G$8:G13)-SUM($H$8:H13) -> 114998 | M13: ='1月'!M13 -> 7 | N13: ='1月'!N13 -> お小遣い | O13: 0
I14: =$I$7+SUM($G$8:G14)-SUM($H$8:H14) -> 114998 | K14: =IF(J14<>0,VLOOKUP(J14,M$7:N$36,2,FALSE),"") ->  | M14: ='1月'!M14 -> 8 | N14: ='1月'!N14 -> 通信ＩＴ費 | O14: 0
I15: =$I$7+SUM($G$8:G15)-SUM($H$8:H15) -> 114998 | K15: =IF(J15<>0,VLOOKUP(J15,M$7:N$36,2,FALSE),"") ->  | M15: ='1月'!M15 -> 9 | N15: ='1月'!N15 -> 交際費 | O15: 0
I16: =$I$7+SUM($G$8:G16)-SUM($H$8:H16) -> 114998 | M16: ='1月'!M16 -> 10 | N16: ='1月'!N16 -> 趣味娯楽費 | O16: 0
I17: =$I$7+SUM($G$8:G17)-SUM($H$8:H17) -> 114998 | M17: ='1月'!M17 -> 11 | N17: ='1月'!N17 -> 社会保険料 | O17: 0
I18: =$I$7+SUM($G$8:G18)-SUM($H$8:H18) -> 114998 | M18: ='1月'!M18 -> 12 | N18: ='1月'!N18 -> 其他保険料 | O18: 0
I19: =$I$7+SUM($G$8:G19)-SUM($H$8:H19) -> 114998 | M19: ='1月'!M19 -> 13 | N19: ='1月'!N19 -> 保健医療費 | O19: 0
I20: =$I$7+SUM($G$8:G20)-SUM($H$8:H20) -> 114998 | M20: ='1月'!M20 -> 14 | N20: ='1月'!N20 -> 税金 | O20: 0
I21: =$I$7+SUM($G$8:G21)-SUM($H$8:H21) -> 114998 | M21: ='1月'!M21 -> 15 | N21: ='1月'!N21 -> 交通費 | O21: 0
I22: =$I$7+SUM($G$8:G22)-SUM($H$8:H22) -> 114998 | M22: ='1月'!M22 -> 16 | N22: ='1月'!N22 -> 支払手数料 | O22: 0
I23: =$I$7+SUM($G$8:G23)-SUM($H$8:H23) -> 114998 | M23: ='1月'!M23 -> 17 | N23: ='1月'!N23 -> 雑貨日用品 | O23: 0
I24: =$I$7+SUM($G$8:G24)-SUM($H$8:H24) -> 114998 | M24: ='1月'!M24 -> 18 | N24: ='1月'!N24 -> 消耗品費 | O24: 0
I25: =$I$7+SUM($G$8:G25)-SUM($H$8:H25) -> 114998 | M25: ='1月'!M25 -> 19 | N25: ='1月'!N25 -> 冠婚葬祭費 | O25: 0
I26: =$I$7+SUM($G$8:G26)-SUM($H$8:H26) -> 114998 | M26: ='1月'!M26 -> 20 | N26: ='1月'!N26 -> 車両費 | O26: 0
I27: =$I$7+SUM($G$8:G27)-SUM($H$8:H27) -> 114998 | M27: ='1月'!M27 -> 21 | N27: ='1月'!N27 -> 雑費 | O27: 0
I28: =$I$7+SUM($G$8:G28)-SUM($H$8:H28) -> 114998 | M28: ='1月'!M28 -> 22 | N28: ='1月'!N28 -> 0 | O28: 0
I29: =$I$7+SUM($G$8:G29)-SUM($H$8:H29) -> 114998 | M29: ='1月'!M29 -> 23 | N29: ='1月'!N29 -> 0 | O29: 0
I30: =$I$7+SUM($G$8:G30)-SUM($H$8:H30) -> 114998 | M30: ='1月'!M30 -> 24 | N30: ='1月'!N30 -> 0 | O30: 0
I31: =$I$7+SUM($G$8:G31)-SUM($H$8:H31) -> 114998 | M31: ='1月'!M31 -> 25 | N31: ='1月'!N31 -> 0 | O31: 0
I32: =$I$7+SUM($G$8:G32)-SUM($H$8:H32) -> 114998 | M32: ='1月'!M32 -> 26 | N32: ='1月'!N32 -> 0 | O32: 0
I33: =$I$7+SUM($G$8:G33)-SUM($H$8:H33) -> 114998 | M33: ='1月'!M33 -> 27 | N33: ='1月'!N33 -> 0 | O33: 0
I34: =$I$7+SUM($G$8:G34)-SUM($H$8:H34) -> 114998 | M34: ='1月'!M34 -> 28 | N34: ='1月'!N34 -> 0 | O34: 0
I35: =$I$7+SUM($G$8:G35)-SUM($H$8:H35) -> 114998 | M35: ='1月'!M35 -> 29 | N35: ='1月'!N35 -> 使途不明金 | O35: 0
I36: =$I$7+SUM($G$8:G36)-SUM($H$8:H36) -> 114998 | M36: ='1月'!M36 -> 30 | N36: ='1月'!N36 -> その他 | O36: 0
I37: =$I$7+SUM($G$8:G37)-SUM($H$8:H37) -> 114998 | N37: =IF(SUM(O7:O36)=0,"","合 計") ->  | O37: =IF(SUM(O7:O36)=0,"",SUM(O7:O36)) -> 
C38: 自動振替処理が未済です | E38: 月 計 | G38: =SUM(G$8:G37) -> 0 | H38: =SUM(H$8:H37) -> 0
F39: 前月残高 | G39: =I7 -> 114998
F40: 当月残高 | H40: =I37 -> 114998
F41: 合 計 | G41: =SUM(G38:G40) -> 114998 | H41: =SUM(H38:H40) -> 114998
F43: （月計の内訳）
F44: 現 金 | G44: =G38-G45 -> 0 | H44: =H38-H45 -> 0
F45: 預貯金振替 | G45: =$C$7 -> 0 | H45: =$F$6 -> 0

Sheet 7月
G2: 月 度 現 金 出 納 帳
D3: ='1月'!D3 -> 2012 | I3: ='1月'!$I$3:$K$3 -> わがやの家計簿 | L3: ↓ | N3: ↓ 費 目 振 分 未 済
A4: =A7&G2 -> 7 月 度 現 金 出 納 帳 | M4: 費 目 別 集 計 表
A6: 月 | B6: 日 | D6: 摘 要 | F6: =SUM($F$8:F37) -> 0 | G6: 入 金 | H6: 出 金 | I6: 残 高 | J6: № | K6: 費 目 名 | M6: № | N6: 費 目 名 | O6: 出金計
A7: =IF('6月'!A7+1<=12,'6月'!A7+1,'6月'!A7+1-12) -> 7 | B7: 1 | C7: =SUM($C$8:C37) -> 0 | F7: 前月より繰越 | I7: ='6月'!H40 -> 114998 | J7: - | K7: * * * * * | L7: =MAX(L8:L37) -> 0 | M7: ='1月'!M7 -> 1 | N7: ='1月'!N7 -> 食材飲料費 | O7: =SUMIF(J$8:J$37,M7,H$8:H$37) -> 0
C8: =IF(OR(LEFT(D8,1)="*",LEFT(D8,1)="＊"),G8,"") ->  | F8: =IF(OR(LEFT(D8,1)="*",LEFT(D8,1)="＊"),H8,"") ->  | I8: =$I$7+SUM($G$8:G8)-SUM($H$8:H8) -> 114998 | K8: =IF(J8<>0,VLOOKUP(J8,M$7:N$36,2,FALSE),"") ->  | L8: =IF(I8<0,1,IF(AND(G8<>"",H8<>""),2,"")) ->  | M8: ='1月'!M8 -> 2 | N8: ='1月'!N8 -> 外食費 | O8: 0
C9: =IF(OR(LEFT(D9,1)="*",LEFT(D9,1)="＊"),G9,"") ->  | F9: =IF(OR(LEFT(D9,1)="*",LEFT(D9,1)="＊"),H9,"") ->  | I9: =$I$7+SUM($G$8:G9)-SUM($H$8:H9) -> 114998 | M9: ='1月'!M9 -> 3 | N9: ='1月'!N9 -> 住居費 | O9: 0
F10: =IF(OR(LEFT(D10,1)="*",LEFT(D10,1)="＊"),H10,"") ->  | I10: =$I$7+SUM($G$8:G10)-SUM($H$8:H10) -> 114998 | M10: ='1月'!M10 -> 4 | N10: ='1月'!N10 -> 水道光熱費 | O10: 0
F11: =IF(OR(LEFT(D11,1)="*",LEFT(D11,1)="＊"),H11,"") ->  | I11: =$I$7+SUM($G$8:G11)-SUM($H$8:H11) -> 114998 | M11: ='1月'!M11 -> 5 | N11: ='1月'!N11 -> 被服費 | O11: 0
I12: =$I$7+SUM($G$8:G12)-SUM($H$8:H12) -> 114998 | M12: ='1月'!M12 -> 6 | N12: ='1月'!N12 -> 教育費 | O12: 0
I13: =$I$7+SUM($G$8:G13)-SUM($H$8:H13) -> 114998 | M13: ='1月'!M13 -> 7 | N13: ='1月'!N13 -> お小遣い | O13: 0
I14: =$I$7+SUM($G$8:G14)-SUM($H$8:H14) -> 114998 | K14: =IF(J14<>0,VLOOKUP(J14,M$7:N$36,2,FALSE),"") ->  | M14: ='1月'!M14 -> 8 | N14: ='1月'!N14 -> 通信ＩＴ費 | O14: 0
I15: =$I$7+SUM($G$8:G15)-SUM($H$8:H15) -> 114998 | K15: =IF(J15<>0,VLOOKUP(J15,M$7:N$36,2,FALSE),"") ->  | M15: ='1月'!M15 -> 9 | N15: ='1月'!N15 -> 交際費 | O15: 0
I16: =$I$7+SUM($G$8:G16)-SUM($H$8:H16) -> 114998 | M16: ='1月'!M16 -> 10 | N16: ='1月'!N16 -> 趣味娯楽費 | O16: 0
I17: =$I$7+SUM($G$8:G17)-SUM($H$8:H17) -> 114998 | M17: ='1月'!M17 -> 11 | N17: ='1月'!N17 -> 社会保険料 | O17: 0
I18: =$I$7+SUM($G$8:G18)-SUM($H$8:H18) -> 114998 | M18: ='1月'!M18 -> 12 | N18: ='1月'!N18 -> 其他保険料 | O18: 0
I19: =$I$7+SUM($G$8:G19)-SUM($H$8:H19) -> 114998 | M19: ='1月'!M19 -> 13 | N19: ='1月'!N19 -> 保健医療費 | O19: 0
I20: =$I$7+SUM($G$8:G20)-SUM($H$8:H20) -> 114998 | M20: ='1月'!M20 -> 14 | N20: ='1月'!N20 -> 税金 | O20: 0
I21: =$I$7+SUM($G$8:G21)-SUM($H$8:H21) -> 114998 | M21: ='1月'!M21 -> 15 | N21: ='1月'!N21 -> 交通費 | O21: 0
I22: =$I$7+SUM($G$8:G22)-SUM($H$8:H22) -> 114998 | M22: ='1月'!M22 -> 16 | N22: ='1月'!N22 -> 支払手数料 | O22: 0
I23: =$I$7+SUM($G$8:G23)-SUM($H$8:H23) -> 114998 | M23: ='1月'!M23 -> 17 | N23: ='1月'!N23 -> 雑貨日用品 | O23: 0
I24: =$I$7+SUM($G$8:G24)-SUM($H$8:H24) -> 114998 | M24: ='1月'!M24 -> 18 | N24: ='1月'!N24 -> 消耗品費 | O24: 0
I25: =$I$7+SUM($G$8:G25)-SUM($H$8:H25) -> 114998 | M25: ='1月'!M25 -> 19 | N25: ='1月'!N25 -> 冠婚葬祭費 | O25: 0
I26: =$I$7+SUM($G$8:G26)-SUM($H$8:H26) -> 114998 | M26: ='1月'!M26 -> 20 | N26: ='1月'!N26 -> 車両費 | O26: 0
I27: =$I$7+SUM($G$8:G27)-SUM($H$8:H27) -> 114998 | M27: ='1月'!M27 -> 21 | N27: ='1月'!N27 -> 雑費 | O27: 0
I28: =$I$7+SUM($G$8:G28)-SUM($H$8:H28) -> 114998 | M28: ='1月'!M28 -> 22 | N28: ='1月'!N28 -> 0 | O28: 0
I29: =$I$7+SUM($G$8:G29)-SUM($H$8:H29) -> 114998 | M29: ='1月'!M29 -> 23 | N29: ='1月'!N29 -> 0 | O29: 0
I30: =$I$7+SUM($G$8:G30)-SUM($H$8:H30) -> 114998 | M30: ='1月'!M30 -> 24 | N30: ='1月'!N30 -> 0 | O30: 0
I31: =$I$7+SUM($G$8:G31)-SUM($H$8:H31) -> 114998 | M31: ='1月'!M31 -> 25 | N31: ='1月'!N31 -> 0 | O31: 0
I32: =$I$7+SUM($G$8:G32)-SUM($H$8:H32) -> 114998 | M32: ='1月'!M32 -> 26 | N32: ='1月'!N32 -> 0 | O32: 0
I33: =$I$7+SUM($G$8:G33)-SUM($H$8:H33) -> 114998 | M33: ='1月'!M33 -> 27 | N33: ='1月'!N33 -> 0 | O33: 0
I34: =$I$7+SUM($G$8:G34)-SUM($H$8:H34) -> 114998 | M34: ='1月'!M34 -> 28 | N34: ='1月'!N34 -> 0 | O34: 0
I35: =$I$7+SUM($G$8:G35)-SUM($H$8:H35) -> 114998 | M35: ='1月'!M35 -> 29 | N35: ='1月'!N35 -> 使途不明金 | O35: 0
I36: =$I$7+SUM($G$8:G36)-SUM($H$8:H36) -> 114998 | M36: ='1月'!M36 -> 30 | N36: ='1月'!N36 -> その他 | O36: 0
I37: =$I$7+SUM($G$8:G37)-SUM($H$8:H37) -> 114998 | N37: =IF(SUM(O7:O36)=0,"","合 計") ->  | O37: =IF(SUM(O7:O36)=0,"",SUM(O7:O36)) -> 
C38: 自動振替処理が未済です | E38: 月 計 | G38: =SUM(G$8:G37) -> 0 | H38: =SUM(H$8:H37) -> 0
F39: 前月残高 | G39: =I7 -> 114998
F40: 当月残高 | H40: =I37 -> 114998
F41: 合 計 | G41: =SUM(G38:G40) -> 114998 | H41: =SUM(H38:H40) -> 114998
F43: （月計の内訳）
F44: 現 金 | G44: =G38-G45 -> 0 | H44: =H38-H45 -> 0
F45: 預貯金振替 | G45: =$C$7 -> 0 | H45: =$F$6 -> 0

Sheet 8月
G2: 月 度 現 金 出 納 帳
D3: ='1月'!D3 -> 2012 | I3: ='1月'!$I$3:$K$3 -> わがやの家計簿 | L3: ↓ | N3: ↓ 費 目 振 分 未 済
A4: =A7&G2 -> 8 月 度 現 金 出 納 帳 | M4: 費 目 別 集 計 表
A6: 月 | B6: 日 | D6: 摘 要 | F6: =SUM($F$8:F37) -> 0 | G6: 入 金 | H6: 出 金 | I6: 残 高 | J6: № | K6: 費 目 名 | M6: № | N6: 費 目 名 | O6: 出金計
A7: =IF('7月'!A7+1<=12,'7月'!A7+1,'7月'!A7+1-12) -> 8 | B7: 1 | C7: =SUM($C$8:C37) -> 0 | F7: 前月より繰越 | I7: ='7月'!H40 -> 114998 | J7: - | K7: * * * * * | L7: =MAX(L8:L37) -> 0 | M7: ='1月'!M7 -> 1 | N7: ='1月'!N7 -> 食材飲料費 | O7: =SUMIF(J$8:J$37,M7,H$8:H$37) -> 0
C8: =IF(OR(LEFT(D8,1)="*",LEFT(D8,1)="＊"),G8,"") ->  | F8: =IF(OR(LEFT(D8,1)="*",LEFT(D8,1)="＊"),H8,"") ->  | I8: =$I$7+SUM($G$8:G8)-SUM($H$8:H8) -> 114998 | K8: =IF(J8<>0,VLOOKUP(J8,M$7:N$36,2,FALSE),"") ->  | L8: =IF(I8<0,1,IF(AND(G8<>"",H8<>""),2,"")) ->  | M8: ='1月'!M8 -> 2 | N8: ='1月'!N8 -> 外食費 | O8: 0
C9: =IF(OR(LEFT(D9,1)="*",LEFT(D9,1)="＊"),G9,"") ->  | F9: =IF(OR(LEFT(D9,1)="*",LEFT(D9,1)="＊"),H9,"") ->  | I9: =$I$7+SUM($G$8:G9)-SUM($H$8:H9) -> 114998 | M9: ='1月'!M9 -> 3 | N9: ='1月'!N9 -> 住居費 | O9: 0
F10: =IF(OR(LEFT(D10,1)="*",LEFT(D10,1)="＊"),H10,"") ->  | I10: =$I$7+SUM($G$8:G10)-SUM($H$8:H10) -> 114998 | M10: ='1月'!M10 -> 4 | N10: ='1月'!N10 -> 水道光熱費 | O10: 0
F11: =IF(OR(LEFT(D11,1)="*",LEFT(D11,1)="＊"),H11,"") ->  | I11: =$I$7+SUM($G$8:G11)-SUM($H$8:H11) -> 114998 | M11: ='1月'!M11 -> 5 | N11: ='1月'!N11 -> 被服費 | O11: 0
I12: =$I$7+SUM($G$8:G12)-SUM($H$8:H12) -> 114998 | M12: ='1月'!M12 -> 6 | N12: ='1月'!N12 -> 教育費 | O12: 0
I13: =$I$7+SUM($G$8:G13)-SUM($H$8:H13) -> 114998 | M13: ='1月'!M13 -> 7 | N13: ='1月'!N13 -> お小遣い | O13: 0
I14: =$I$7+SUM($G$8:G14)-SUM($H$8:H14) -> 114998 | K14: =IF(J14<>0,VLOOKUP(J14,M$7:N$36,2,FALSE),"") ->  | M14: ='1月'!M14 -> 8 | N14: ='1月'!N14 -> 通信ＩＴ費 | O14: 0
C15: =IF(OR(LEFT(D15,1)="*",LEFT(D15,1)="＊"),G15,"") ->  | F15: =IF(OR(LEFT(D15,1)="*",LEFT(D15,1)="＊"),H15,"") ->  | I15: =$I$7+SUM($G$8:G15)-SUM($H$8:H15) -> 114998 | K15: =IF(J15<>0,VLOOKUP(J15,M$7:N$36,2,FALSE),"") ->  | M15: ='1月'!M15 -> 9 | N15: ='1月'!N15 -> 交際費 | O15: 0
I16: =$I$7+SUM($G$8:G16)-SUM($H$8:H16) -> 114998 | M16: ='1月'!M16 -> 10 | N16: ='1月'!N16 -> 趣味娯楽費 | O16: 0
I17: =$I$7+SUM($G$8:G17)-SUM($H$8:H17) -> 114998 | M17: ='1月'!M17 -> 11 | N17: ='1月'!N17 -> 社会保険料 | O17: 0
I18: =$I$7+SUM($G$8:G18)-SUM($H$8:H18) -> 114998 | M18: ='1月'!M18 -> 12 | N18: ='1月'!N18 -> 其他保険料 | O18: 0
I19: =$I$7+SUM($G$8:G19)-SUM($H$8:H19) -> 114998 | M19: ='1月'!M19 -> 13 | N19: ='1月'!N19 -> 保健医療費 | O19: 0
I20: =$I$7+SUM($G$8:G20)-SUM($H$8:H20) -> 114998 | M20: ='1月'!M20 -> 14 | N20: ='1月'!N20 -> 税金 | O20: 0
I21: =$I$7+SUM($G$8:G21)-SUM($H$8:H21) -> 114998 | M21: ='1月'!M21 -> 15 | N21: ='1月'!N21 -> 交通費 | O21: 0
I22: =$I$7+SUM($G$8:G22)-SUM($H$8:H22) -> 114998 | M22: ='1月'!M22 -> 16 | N22: ='1月'!N22 -> 支払手数料 | O22: 0
C23: =IF(OR(LEFT(D23,1)="*",LEFT(D23,1)="＊"),G23,"") ->  | F23: =IF(OR(LEFT(D23,1)="*",LEFT(D23,1)="＊"),H23,"") ->  | I23: =$I$7+SUM($G$8:G23)-SUM($H$8:H23) -> 114998 | M23: ='1月'!M23 -> 17 | N23: ='1月'!N23 -> 雑貨日用品 | O23: 0
I24: =$I$7+SUM($G$8:G24)-SUM($H$8:H24) -> 114998 | M24: ='1月'!M24 -> 18 | N24: ='1月'!N24 -> 消耗品費 | O24: 0
I25: =$I$7+SUM($G$8:G25)-SUM($H$8:H25) -> 114998 | M25: ='1月'!M25 -> 19 | N25: ='1月'!N25 -> 冠婚葬祭費 | O25: 0
I26: =$I$7+SUM($G$8:G26)-SUM($H$8:H26) -> 114998 | M26: ='1月'!M26 -> 20 | N26: ='1月'!N26 -> 車両費 | O26: 0
I27: =$I$7+SUM($G$8:G27)-SUM($H$8:H27) -> 114998 | M27: ='1月'!M27 -> 21 | N27: ='1月'!N27 -> 雑費 | O27: 0
I28: =$I$7+SUM($G$8:G28)-SUM($H$8:H28) -> 114998 | M28: ='1月'!M28 -> 22 | N28: ='1月'!N28 -> 0 | O28: 0
I29: =$I$7+SUM($G$8:G29)-SUM($H$8:H29) -> 114998 | M29: ='1月'!M29 -> 23 | N29: ='1月'!N29 -> 0 | O29: 0
I30: =$I$7+SUM($G$8:G30)-SUM($H$8:H30) -> 114998 | M30: ='1月'!M30 -> 24 | N30: ='1月'!N30 -> 0 | O30: 0
I31: =$I$7+SUM($G$8:G31)-SUM($H$8:H31) -> 114998 | M31: ='1月'!M31 -> 25 | N31: ='1月'!N31 -> 0 | O31: 0
I32: =$I$7+SUM($G$8:G32)-SUM($H$8:H32) -> 114998 | M32: ='1月'!M32 -> 26 | N32: ='1月'!N32 -> 0 | O32: 0
I33: =$I$7+SUM($G$8:G33)-SUM($H$8:H33) -> 114998 | M33: ='1月'!M33 -> 27 | N33: ='1月'!N33 -> 0 | O33: 0
I34: =$I$7+SUM($G$8:G34)-SUM($H$8:H34) -> 114998 | M34: ='1月'!M34 -> 28 | N34: ='1月'!N34 -> 0 | O34: 0
I35: =$I$7+SUM($G$8:G35)-SUM($H$8:H35) -> 114998 | M35: ='1月'!M35 -> 29 | N35: ='1月'!N35 -> 使途不明金 | O35: 0
I36: =$I$7+SUM($G$8:G36)-SUM($H$8:H36) -> 114998 | M36: ='1月'!M36 -> 30 | N36: ='1月'!N36 -> その他 | O36: 0
I37: =$I$7+SUM($G$8:G37)-SUM($H$8:H37) -> 114998 | N37: =IF(SUM(O7:O36)=0,"","合 計") ->  | O37: =IF(SUM(O7:O36)=0,"",SUM(O7:O36)) -> 
C38: 自動振替処理が未済です | E38: 月 計 | G38: =SUM(G$8:G37) -> 0 | H38: =SUM(H$8:H37) -> 0
F39: 前月残高 | G39: =I7 -> 114998
F40: 当月残高 | H40: =I37 -> 114998
F41: 合 計 | G41: =SUM(G38:G40) -> 114998 | H41: =SUM(H38:H40) -> 114998
F43: （月計の内訳）
F44: 現 金 | G44: =G38-G45 -> 0 | H44: =H38-H45 -> 0
F45: 預貯金振替 | G45: =$C$7 -> 0 | H45: =$F$6 -> 0

Sheet 9月
G2: 月 度 現 金 出 納 帳
D3: ='1月'!D3 -> 2012 | I3: ='1月'!$I$3:$K$3 -> わがやの家計簿 | L3: ↓ | N3: ↓ 費 目 振 分 未 済
A4: =A7&G2 -> 9 月 度 現 金 出 納 帳 | M4: 費 目 別 集 計 表
A6: 月 | B6: 日 | D6: 摘 要 | F6: =SUM($F$8:F37) -> 0 | G6: 入 金 | H6: 出 金 | I6: 残 高 | J6: № | K6: 費 目 名 | M6: № | N6: 費 目 名 | O6: 出金計
A7: =IF('8月'!A7+1<=12,'8月'!A7+1,'8月'!A7+1-12) -> 9 | B7: 1 | C7: =SUM($C$8:C37) -> 0 | F7: 前月より繰越 | I7: ='8月'!H40 -> 114998 | J7: - | K7: * * * * * | L7: =MAX(L8:L37) -> 0 | M7: ='1月'!M7 -> 1 | N7: ='1月'!N7 -> 食材飲料費 | O7: =SUMIF(J$8:J$37,M7,H$8:H$37) -> 0
C8: =IF(OR(LEFT(D8,1)="*",LEFT(D8,1)="＊"),G8,"") ->  | F8: =IF(OR(LEFT(D8,1)="*",LEFT(D8,1)="＊"),H8,"") ->  | I8: =$I$7+SUM($G$8:G8)-SUM($H$8:H8) -> 114998 | K8: =IF(J8<>0,VLOOKUP(J8,M$7:N$36,2,FALSE),"") ->  | L8: =IF(I8<0,1,IF(AND(G8<>"",H8<>""),2,"")) ->  | M8: ='1月'!M8 -> 2 | N8: ='1月'!N8 -> 外食費 | O8: 0
C9: =IF(OR(LEFT(D9,1)="*",LEFT(D9,1)="＊"),G9,"") ->  | F9: =IF(OR(LEFT(D9,1)="*",LEFT(D9,1)="＊"),H9,"") ->  | I9: =$I$7+SUM($G$8:G9)-SUM($H$8:H9) -> 114998 | M9: ='1月'!M9 -> 3 | N9: ='1月'!N9 -> 住居費 | O9: 0
C10: =IF(OR(LEFT(D10,1)="*",LEFT(D10,1)="＊"),G10,"") ->  | I10: =$I$7+SUM($G$8:G10)-SUM($H$8:H10) -> 114998 | M10: ='1月'!M10 -> 4 | N10: ='1月'!N10 -> 水道光熱費 | O10: 0
I11: =$I$7+SUM($G$8:G11)-SUM($H$8:H11) -> 114998 | M11: ='1月'!M11 -> 5 | N11: ='1月'!N11 -> 被服費 | O11: 0
I12: =$I$7+SUM($G$8:G12)-SUM($H$8:H12) -> 114998 | M12: ='1月'!M12 -> 6 | N12: ='1月'!N12 -> 教育費 | O12: 0
I13: =$I$7+SUM($G$8:G13)-SUM($H$8:H13) -> 114998 | M13: ='1月'!M13 -> 7 | N13: ='1月'!N13 -> お小遣い | O13: 0
C14: =IF(OR(LEFT(D14,1)="*",LEFT(D14,1)="＊"),G14,"") ->  | F14: =IF(OR(LEFT(D14,1)="*",LEFT(D14,1)="＊"),H14,"") ->  | I14: =$I$7+SUM($G$8:G14)-SUM($H$8:H14) -> 114998 | K14: =IF(J14<>0,VLOOKUP(J14,M$7:N$36,2,FALSE),"") ->  | M14: ='1月'!M14 -> 8 | N14: ='1月'!N14 -> 通信ＩＴ費 | O14: 0
C15: =IF(OR(LEFT(D15,1)="*",LEFT(D15,1)="＊"),G15,"") ->  | I15: =$I$7+SUM($G$8:G15)-SUM($H$8:H15) -> 114998 | K15: =IF(J15<>0,VLOOKUP(J15,M$7:N$36,2,FALSE),"") ->  | M15: ='1月'!M15 -> 9 | N15: ='1月'!N15 -> 交際費 | O15: 0
I16: =$I$7+SUM($G$8:G16)-SUM($H$8:H16) -> 114998 | M16: ='1月'!M16 -> 10 | N16: ='1月'!N16 -> 趣味娯楽費 | O16: 0
I17: =$I$7+SUM($G$8:G17)-SUM($H$8:H17) -> 114998 | M17: ='1月'!M17 -> 11 | N17: ='1月'!N17 -> 社会保険料 | O17: 0
I18: =$I$7+SUM($G$8:G18)-SUM($H$8:H18) -> 114998 | M18: ='1月'!M18 -> 12 | N18: ='1月'!N18 -> 其他保険料 | O18: 0
I19: =$I$7+SUM($G$8:G19)-SUM($H$8:H19) -> 114998 | M19: ='1月'!M19 -> 13 | N19: ='1月'!N19 -> 保健医療費 | O19: 0
I20: =$I$7+SUM($G$8:G20)-SUM($H$8:H20) -> 114998 | M20: ='1月'!M20 -> 14 | N20: ='1月'!N20 -> 税金 | O20: 0
I21: =$I$7+SUM($G$8:G21)-SUM($H$8:H21) -> 114998 | K21: =IF(J21<>0,VLOOKUP(J21,M$7:N$36,2,FALSE),"") ->  | M21: ='1月'!M21 -> 15 | N21: ='1月'!N21 -> 交通費 | O21: 0
I22: =$I$7+SUM($G$8:G22)-SUM($H$8:H22) -> 114998 | M22: ='1月'!M22 -> 16 | N22: ='1月'!N22 -> 支払手数料 | O22: 0
I23: =$I$7+SUM($G$8:G23)-SUM($H$8:H23) -> 114998 | M23: ='1月'!M23 -> 17 | N23: ='1月'!N23 -> 雑貨日用品 | O23: 0
I24: =$I$7+SUM($G$8:G24)-SUM($H$8:H24) -> 114998 | M24: ='1月'!M24 -> 18 | N24: ='1月'!N24 -> 消耗品費 | O24: 0
I25: =$I$7+SUM($G$8:G25)-SUM($H$8:H25) -> 114998 | M25: ='1月'!M25 -> 19 | N25: ='1月'!N25 -> 冠婚葬祭費 | O25: 0
I26: =$I$7+SUM($G$8:G26)-SUM($H$8:H26) -> 114998 | M26: ='1月'!M26 -> 20 | N26: ='1月'!N26 -> 車両費 | O26: 0
I27: =$I$7+SUM($G$8:G27)-SUM($H$8:H27) -> 114998 | M27: ='1月'!M27 -> 21 | N27: ='1月'!N27 -> 雑費 | O27: 0
I28: =$I$7+SUM($G$8:G28)-SUM($H$8:H28) -> 114998 | M28: ='1月'!M28 -> 22 | N28: ='1月'!N28 -> 0 | O28: 0
I29: =$I$7+SUM($G$8:G29)-SUM($H$8:H29) -> 114998 | M29: ='1月'!M29 -> 23 | N29: ='1月'!N29 -> 0 | O29: 0
I30: =$I$7+SUM($G$8:G30)-SUM($H$8:H30) -> 114998 | M30: ='1月'!M30 -> 24 | N30: ='1月'!N30 -> 0 | O30: 0
I31: =$I$7+SUM($G$8:G31)-SUM($H$8:H31) -> 114998 | M31: ='1月'!M31 -> 25 | N31: ='1月'!N31 -> 0 | O31: 0
I32: =$I$7+SUM($G$8:G32)-SUM($H$8:H32) -> 114998 | M32: ='1月'!M32 -> 26 | N32: ='1月'!N32 -> 0 | O32: 0
I33: =$I$7+SUM($G$8:G33)-SUM($H$8:H33) -> 114998 | M33: ='1月'!M33 -> 27 | N33: ='1月'!N33 -> 0 | O33: 0
I34: =$I$7+SUM($G$8:G34)-SUM($H$8:H34) -> 114998 | M34: ='1月'!M34 -> 28 | N34: ='1月'!N34 -> 0 | O34: 0
I35: =$I$7+SUM($G$8:G35)-SUM($H$8:H35) -> 114998 | M35: ='1月'!M35 -> 29 | N35: ='1月'!N35 -> 使途不明金 | O35: 0
I36: =$I$7+SUM($G$8:G36)-SUM($H$8:H36) -> 114998 | M36: ='1月'!M36 -> 30 | N36: ='1月'!N36 -> その他 | O36: 0
I37: =$I$7+SUM($G$8:G37)-SUM($H$8:H37) -> 114998 | N37: =IF(SUM(O7:O36)=0,"","合 計") ->  | O37: =IF(SUM(O7:O36)=0,"",SUM(O7:O36)) -> 
C38: 自動振替処理が未済です | E38: 月 計 | G38: =SUM(G$8:G37) -> 0 | H38: =SUM(H$8:H37) -> 0
F39: 前月残高 | G39: =I7 -> 114998
F40: 当月残高 | H40: =I37 -> 114998
F41: 合 計 | G41: =SUM(G38:G40) -> 114998 | H41: =SUM(H38:H40) -> 114998
F43: （月計の内訳）
F44: 現 金 | G44: =G38-G45 -> 0 | H44: =H38-H45 -> 0
F45: 預貯金振替 | G45: =$C$7 -> 0 | H45: =$F$6 -> 0

Sheet 10月
G2: 月 度 現 金 出 納 帳
D3: ='1月'!D3 -> 2012 | E3: =IF(L7=1,"エラー(マイナス残高)です",IF(L7=2,"入金と出金は別行に記入してください","")) ->  | I3: ='1月'!$I$3:$K$3 -> わがやの家計簿 | L3: ↓ | N3: ↓ 費 目 振 分 未 済
A4: =A7&G2 -> 10 月 度 現 金 出 納 帳 | M4: 費 目 別 集 計 表
A6: 月 | B6: 日 | D6: 摘 要 | F6: =SUM($F$8:F37) -> 0 | G6: 入 金 | H6: 出 金 | I6: 残 高 | J6: № | K6: 費 目 名 | M6: № | N6: 費 目 名 | O6: 出金計
A7: =IF('9月'!A7+1<=12,'9月'!A7+1,'9月'!A7+1-12) -> 10 | B7: 1 | C7: =SUM($C$8:C37) -> 0 | F7: 前月より繰越 | I7: ='9月'!H40 -> 114998 | J7: - | K7: * * * * * | L7: =MAX(L8:L37) -> 0 | M7: ='1月'!M7 -> 1 | N7: ='1月'!N7 -> 食材飲料費 | O7: =SUMIF(J$8:J$37,M7,H$8:H$37) -> 0
C8: =IF(OR(LEFT(D8,1)="*",LEFT(D8,1)="＊"),G8,"") ->  | F8: =IF(OR(LEFT(D8,1)="*",LEFT(D8,1)="＊"),H8,"") ->  | I8: =$I$7+SUM($G$8:G8)-SUM($H$8:H8) -> 114998 | K8: =IF(J8<>0,VLOOKUP(J8,M$7:N$36,2,FALSE),"") ->  | L8: =IF(I8<0,1,IF(AND(G8<>"",H8<>""),2,"")) ->  | M8: ='1月'!M8 -> 2 | N8: ='1月'!N8 -> 外食費 | O8: 0
C9: =IF(OR(LEFT(D9,1)="*",LEFT(D9,1)="＊"),G9,"") ->  | F9: =IF(OR(LEFT(D9,1)="*",LEFT(D9,1)="＊"),H9,"") ->  | I9: =$I$7+SUM($G$8:G9)-SUM($H$8:H9) -> 114998 | M9: ='1月'!M9 -> 3 | N9: ='1月'!N9 -> 住居費 | O9: 0
C10: =IF(OR(LEFT(D10,1)="*",LEFT(D10,1)="＊"),G10,"") ->  | I10: =$I$7+SUM($G$8:G10)-SUM($H$8:H10) -> 114998 | M10: ='1月'!M10 -> 4 | N10: ='1月'!N10 -> 水道光熱費 | O10: 0
I11: =$I$7+SUM($G$8:G11)-SUM($H$8:H11) -> 114998 | M11: ='1月'!M11 -> 5 | N11: ='1月'!N11 -> 被服費 | O11: 0
I12: =$I$7+SUM($G$8:G12)-SUM($H$8:H12) -> 114998 | M12: ='1月'!M12 -> 6 | N12: ='1月'!N12 -> 教育費 | O12: 0
I13: =$I$7+SUM($G$8:G13)-SUM($H$8:H13) -> 114998 | M13: ='1月'!M13 -> 7 | N13: ='1月'!N13 -> お小遣い | O13: 0
C14: =IF(OR(LEFT(D14,1)="*",LEFT(D14,1)="＊"),G14,"") ->  | I14: =$I$7+SUM($G$8:G14)-SUM($H$8:H14) -> 114998 | K14: =IF(J14<>0,VLOOKUP(J14,M$7:N$36,2,FALSE),"") ->  | M14: ='1月'!M14 -> 8 | N14: ='1月'!N14 -> 通信ＩＴ費 | O14: 0
I15: =$I$7+SUM($G$8:G15)-SUM($H$8:H15) -> 114998 | K15: =IF(J15<>0,VLOOKUP(J15,M$7:N$36,2,FALSE),"") ->  | M15: ='1月'!M15 -> 9 | N15: ='1月'!N15 -> 交際費 | O15: 0
I16: =$I$7+SUM($G$8:G16)-SUM($H$8:H16) -> 114998 | M16: ='1月'!M16 -> 10 | N16: ='1月'!N16 -> 趣味娯楽費 | O16: 0
I17: =$I$7+SUM($G$8:G17)-SUM($H$8:H17) -> 114998 | M17: ='1月'!M17 -> 11 | N17: ='1月'!N17 -> 社会保険料 | O17: 0
I18: =$I$7+SUM($G$8:G18)-SUM($H$8:H18) -> 114998 | M18: ='1月'!M18 -> 12 | N18: ='1月'!N18 -> 其他保険料 | O18: 0
I19: =$I$7+SUM($G$8:G19)-SUM($H$8:H19) -> 114998 | M19: ='1月'!M19 -> 13 | N19: ='1月'!N19 -> 保健医療費 | O19: 0
I20: =$I$7+SUM($G$8:G20)-SUM($H$8:H20) -> 114998 | M20: ='1月'!M20 -> 14 | N20: ='1月'!N20 -> 税金 | O20: 0
I21: =$I$7+SUM($G$8:G21)-SUM($H$8:H21) -> 114998 | M21: ='1月'!M21 -> 15 | N21: ='1月'!N21 -> 交通費 | O21: 0
I22: =$I$7+SUM($G$8:G22)-SUM($H$8:H22) -> 114998 | M22: ='1月'!M22 -> 16 | N22: ='1月'!N22 -> 支払手数料 | O22: 0
I23: =$I$7+SUM($G$8:G23)-SUM($H$8:H23) -> 114998 | M23: ='1月'!M23 -> 17 | N23: ='1月'!N23 -> 雑貨日用品 | O23: 0
I24: =$I$7+SUM($G$8:G24)-SUM($H$8:H24) -> 114998 | M24: ='1月'!M24 -> 18 | N24: ='1月'!N24 -> 消耗品費 | O24: 0
I25: =$I$7+SUM($G$8:G25)-SUM($H$8:H25) -> 114998 | M25: ='1月'!M25 -> 19 | N25: ='1月'!N25 -> 冠婚葬祭費 | O25: 0
I26: =$I$7+SUM($G$8:G26)-SUM($H$8:H26) -> 114998 | M26: ='1月'!M26 -> 20 | N26: ='1月'!N26 -> 車両費 | O26: 0
I27: =$I$7+SUM($G$8:G27)-SUM($H$8:H27) -> 114998 | M27: ='1月'!M27 -> 21 | N27: ='1月'!N27 -> 雑費 | O27: 0
I28: =$I$7+SUM($G$8:G28)-SUM($H$8:H28) -> 114998 | M28: ='1月'!M28 -> 22 | N28: ='1月'!N28 -> 0 | O28: 0
I29: =$I$7+SUM($G$8:G29)-SUM($H$8:H29) -> 114998 | M29: ='1月'!M29 -> 23 | N29: ='1月'!N29 -> 0 | O29: 0
I30: =$I$7+SUM($G$8:G30)-SUM($H$8:H30) -> 114998 | M30: ='1月'!M30 -> 24 | N30: ='1月'!N30 -> 0 | O30: 0
I31: =$I$7+SUM($G$8:G31)-SUM($H$8:H31) -> 114998 | M31: ='1月'!M31 -> 25 | N31: ='1月'!N31 -> 0 | O31: 0
I32: =$I$7+SUM($G$8:G32)-SUM($H$8:H32) -> 114998 | M32: ='1月'!M32 -> 26 | N32: ='1月'!N32 -> 0 | O32: 0
I33: =$I$7+SUM($G$8:G33)-SUM($H$8:H33) -> 114998 | M33: ='1月'!M33 -> 27 | N33: ='1月'!N33 -> 0 | O33: 0
I34: =$I$7+SUM($G$8:G34)-SUM($H$8:H34) -> 114998 | M34: ='1月'!M34 -> 28 | N34: ='1月'!N34 -> 0 | O34: 0
I35: =$I$7+SUM($G$8:G35)-SUM($H$8:H35) -> 114998 | M35: ='1月'!M35 -> 29 | N35: ='1月'!N35 -> 使途不明金 | O35: 0
I36: =$I$7+SUM($G$8:G36)-SUM($H$8:H36) -> 114998 | M36: ='1月'!M36 -> 30 | N36: ='1月'!N36 -> その他 | O36: 0
I37: =$I$7+SUM($G$8:G37)-SUM($H$8:H37) -> 114998 | N37: =IF(SUM(O7:O36)=0,"","合 計") ->  | O37: =IF(SUM(O7:O36)=0,"",SUM(O7:O36)) -> 
C38: 自動振替処理が未済です | E38: 月 計 | G38: =SUM(G$8:G37) -> 0 | H38: =SUM(H$8:H37) -> 0
F39: 前月残高 | G39: =I7 -> 114998
F40: 当月残高 | H40: =I37 -> 114998
F41: 合 計 | G41: =SUM(G38:G40) -> 114998 | H41: =SUM(H38:H40) -> 114998
F43: （月計の内訳）
F44: 現 金 | G44: =G38-G45 -> 0 | H44: =H38-H45 -> 0
F45: 預貯金振替 | G45: =$C$7 -> 0 | H45: =$F$6 -> 0

Sheet 11月
G2: 月 度 現 金 出 納 帳
D3: ='1月'!D3 -> 2012 | E3: =IF(L7=1,"エラー(マイナス残高)です",IF(L7=2,"入金と出金は別行に記入してください","")) ->  | I3: ='1月'!$I$3:$K$3 -> わがやの家計簿 | L3: ↓ | N3: ↓ 費 目 振 分 未 済
A4: =A7&G2 -> 11 月 度 現 金 出 納 帳 | M4: 費 目 別 集 計 表
A6: 月 | B6: 日 | D6: 摘 要 | F6: =SUM($F$8:F37) -> 0 | G6: 入 金 | H6: 出 金 | I6: 残 高 | J6: № | K6: 費 目 名 | M6: № | N6: 費 目 名 | O6: 出金計
A7: =IF('10月'!A7+1<=12,'10月'!A7+1,'10月'!A7+1-12) -> 11 | B7: 1 | C7: =SUM($C$8:C37) -> 0 | F7: 前月より繰越 | I7: ='10月'!H40 -> 114998 | J7: - | K7: * * * * * | L7: =MAX(L8:L37) -> 0 | M7: ='1月'!M7 -> 1 | N7: ='1月'!N7 -> 食材飲料費 | O7: =SUMIF(J$8:J$37,M7,H$8:H$37) -> 0
C8: =IF(OR(LEFT(D8,1)="*",LEFT(D8,1)="＊"),G8,"") ->  | F8: =IF(OR(LEFT(D8,1)="*",LEFT(D8,1)="＊"),H8,"") ->  | I8: =$I$7+SUM($G$8:G8)-SUM($H$8:H8) -> 114998 | K8: =IF(J8<>0,VLOOKUP(J8,M$7:N$36,2,FALSE),"") ->  | L8: =IF(I8<0,1,IF(AND(G8<>"",H8<>""),2,"")) ->  | M8: ='1月'!M8 -> 2 | N8: ='1月'!N8 -> 外食費 | O8: 0
C9: =IF(OR(LEFT(D9,1)="*",LEFT(D9,1)="＊"),G9,"") ->  | F9: =IF(OR(LEFT(D9,1)="*",LEFT(D9,1)="＊"),H9,"") ->  | I9: =$I$7+SUM($G$8:G9)-SUM($H$8:H9) -> 114998 | M9: ='1月'!M9 -> 3 | N9: ='1月'!N9 -> 住居費 | O9: 0
F10: =IF(OR(LEFT(D10,1)="*",LEFT(D10,1)="＊"),H10,"") ->  | I10: =$I$7+SUM($G$8:G10)-SUM($H$8:H10) -> 114998 | M10: ='1月'!M10 -> 4 | N10: ='1月'!N10 -> 水道光熱費 | O10: 0
F11: =IF(OR(LEFT(D11,1)="*",LEFT(D11,1)="＊"),H11,"") ->  | I11: =$I$7+SUM($G$8:G11)-SUM($H$8:H11) -> 114998 | M11: ='1月'!M11 -> 5 | N11: ='1月'!N11 -> 被服費 | O11: 0
I12: =$I$7+SUM($G$8:G12)-SUM($H$8:H12) -> 114998 | M12: ='1月'!M12 -> 6 | N12: ='1月'!N12 -> 教育費 | O12: 0
I13: =$I$7+SUM($G$8:G13)-SUM($H$8:H13) -> 114998 | M13: ='1月'!M13 -> 7 | N13: ='1月'!N13 -> お小遣い | O13: 0
I14: =$I$7+SUM($G$8:G14)-SUM($H$8:H14) -> 114998 | K14: =IF(J14<>0,VLOOKUP(J14,M$7:N$36,2,FALSE),"") ->  | M14: ='1月'!M14 -> 8 | N14: ='1月'!N14 -> 通信ＩＴ費 | O14: 0
I15: =$I$7+SUM($G$8:G15)-SUM($H$8:H15) -> 114998 | K15: =IF(J15<>0,VLOOKUP(J15,M$7:N$36,2,FALSE),"") ->  | M15: ='1月'!M15 -> 9 | N15: ='1月'!N15 -> 交際費 | O15: 0
I16: =$I$7+SUM($G$8:G16)-SUM($H$8:H16) -> 114998 | M16: ='1月'!M16 -> 10 | N16: ='1月'!N16 -> 趣味娯楽費 | O16: 0
I17: =$I$7+SUM($G$8:G17)-SUM($H$8:H17) -> 114998 | M17: ='1月'!M17 -> 11 | N17: ='1月'!N17 -> 社会保険料 | O17: 0
I18: =$I$7+SUM($G$8:G18)-SUM($H$8:H18) -> 114998 | M18: ='1月'!M18 -> 12 | N18: ='1月'!N18 -> 其他保険料 | O18: 0
I19: =$I$7+SUM($G$8:G19)-SUM($H$8:H19) -> 114998 | M19: ='1月'!M19 -> 13 | N19: ='1月'!N19 -> 保健医療費 | O19: 0
I20: =$I$7+SUM($G$8:G20)-SUM($H$8:H20) -> 114998 | M20: ='1月'!M20 -> 14 | N20: ='1月'!N20 -> 税金 | O20: 0
I21: =$I$7+SUM($G$8:G21)-SUM($H$8:H21) -> 114998 | M21: ='1月'!M21 -> 15 | N21: ='1月'!N21 -> 交通費 | O21: 0
I22: =$I$7+SUM($G$8:G22)-SUM($H$8:H22) -> 114998 | M22: ='1月'!M22 -> 16 | N22: ='1月'!N22 -> 支払手数料 | O22: 0
I23: =$I$7+SUM($G$8:G23)-SUM($H$8:H23) -> 114998 | M23: ='1月'!M23 -> 17 | N23: ='1月'!N23 -> 雑貨日用品 | O23: 0
I24: =$I$7+SUM($G$8:G24)-SUM($H$8:H24) -> 114998 | M24: ='1月'!M24 -> 18 | N24: ='1月'!N24 -> 消耗品費 | O24: 0
I25: =$I$7+SUM($G$8:G25)-SUM($H$8:H25) -> 114998 | M25: ='1月'!M25 -> 19 | N25: ='1月'!N25 -> 冠婚葬祭費 | O25: 0
I26: =$I$7+SUM($G$8:G26)-SUM($H$8:H26) -> 114998 | M26: ='1月'!M26 -> 20 | N26: ='1月'!N26 -> 車両費 | O26: 0
I27: =$I$7+SUM($G$8:G27)-SUM($H$8:H27) -> 114998 | M27: ='1月'!M27 -> 21 | N27: ='1月'!N27 -> 雑費 | O27: 0
I28: =$I$7+SUM($G$8:G28)-SUM($H$8:H28) -> 114998 | M28: ='1月'!M28 -> 22 | N28: ='1月'!N28 -> 0 | O28: 0
I29: =$I$7+SUM($G$8:G29)-SUM($H$8:H29) -> 114998 | M29: ='1月'!M29 -> 23 | N29: ='1月'!N29 -> 0 | O29: 0
I30: =$I$7+SUM($G$8:G30)-SUM($H$8:H30) -> 114998 | M30: ='1月'!M30 -> 24 | N30: ='1月'!N30 -> 0 | O30: 0
I31: =$I$7+SUM($G$8:G31)-SUM($H$8:H31) -> 114998 | M31: ='1月'!M31 -> 25 | N31: ='1月'!N31 -> 0 | O31: 0
I32: =$I$7+SUM($G$8:G32)-SUM($H$8:H32) -> 114998 | M32: ='1月'!M32 -> 26 | N32: ='1月'!N32 -> 0 | O32: 0
I33: =$I$7+SUM($G$8:G33)-SUM($H$8:H33) -> 114998 | M33: ='1月'!M33 -> 27 | N33: ='1月'!N33 -> 0 | O33: 0
I34: =$I$7+SUM($G$8:G34)-SUM($H$8:H34) -> 114998 | M34: ='1月'!M34 -> 28 | N34: ='1月'!N34 -> 0 | O34: 0
I35: =$I$7+SUM($G$8:G35)-SUM($H$8:H35) -> 114998 | M35: ='1月'!M35 -> 29 | N35: ='1月'!N35 -> 使途不明金 | O35: 0
I36: =$I$7+SUM($G$8:G36)-SUM($H$8:H36) -> 114998 | M36: ='1月'!M36 -> 30 | N36: ='1月'!N36 -> その他 | O36: 0
I37: =$I$7+SUM($G$8:G37)-SUM($H$8:H37) -> 114998 | N37: =IF(SUM(O7:O36)=0,"","合 計") ->  | O37: =IF(SUM(O7:O36)=0,"",SUM(O7:O36)) -> 
C38: 自動振替処理が未済です | E38: 月 計 | G38: =SUM(G$8:G37) -> 0 | H38: =SUM(H$8:H37) -> 0
F39: 前月残高 | G39: =I7 -> 114998
F40: 当月残高 | H40: =I37 -> 114998
F41: 合 計 | G41: =SUM(G38:G40) -> 114998 | H41: =SUM(H38:H40) -> 114998
F43: （月計の内訳）
F44: 現 金 | G44: =G38-G45 -> 0 | H44: =H38-H45 -> 0
F45: 預貯金振替 | G45: =$C$7 -> 0 | H45: =$F$6 -> 0

Sheet 12月
G2: 月 度 現 金 出 納 帳
D3: ='1月'!D3 -> 2012 | E3: =IF(L7=1,"エラー(マイナス残高)です",IF(L7=2,"入金と出金は別行に記入してください","")) ->  | I3: ='1月'!$I$3:$K$3 -> わがやの家計簿 | L3: ↓ | N3: ↓ 費 目 振 分 未 済
A4: =A7&G2 -> 12 月 度 現 金 出 納 帳 | M4: 費 目 別 集 計 表
A6: 月 | B6: 日 | D6: 摘 要 | F6: =SUM($F$8:F37) -> 0 | G6: 入 金 | H6: 出 金 | I6: 残 高 | J6: № | K6: 費 目 名 | M6: № | N6: 費 目 名 | O6: 出金計
A7: =IF('11月'!A7+1<=12,'11月'!A7+1,'11月'!A7+1-12) -> 12 | B7: 1 | C7: =SUM($C$8:C37) -> 0 | F7: 前月より繰越 | I7: ='11月'!H40 -> 114998 | J7: - | K7: * * * * * | L7: =MAX(L8:L37) -> 0 | M7: ='1月'!M7 -> 1 | N7: ='1月'!N7 -> 食材飲料費 | O7: =SUMIF(J$8:J$37,M7,H$8:H$37) -> 0
C8: =IF(OR(LEFT(D8,1)="*",LEFT(D8,1)="＊"),G8,"") ->  | F8: =IF(OR(LEFT(D8,1)="*",LEFT(D8,1)="＊"),H8,"") ->  | I8: =$I$7+SUM($G$8:G8)-SUM($H$8:H8) -> 114998 | K8: =IF(J8<>0,VLOOKUP(J8,M$7:N$36,2,FALSE),"") ->  | L8: =IF(I8<0,1,IF(AND(G8<>"",H8<>""),2,"")) ->  | M8: ='1月'!M8 -> 2 | N8: ='1月'!N8 -> 外食費 | O8: 0
C9: =IF(OR(LEFT(D9,1)="*",LEFT(D9,1)="＊"),G9,"") ->  | F9: =IF(OR(LEFT(D9,1)="*",LEFT(D9,1)="＊"),H9,"") ->  | I9: =$I$7+SUM($G$8:G9)-SUM($H$8:H9) -> 114998 | M9: ='1月'!M9 -> 3 | N9: ='1月'!N9 -> 住居費 | O9: 0
C10: =IF(OR(LEFT(D10,1)="*",LEFT(D10,1)="＊"),G10,"") ->  | F10: =IF(OR(LEFT(D10,1)="*",LEFT(D10,1)="＊"),H10,"") ->  | I10: =$I$7+SUM($G$8:G10)-SUM($H$8:H10) -> 114998 | M10: ='1月'!M10 -> 4 | N10: ='1月'!N10 -> 水道光熱費 | O10: 0
F11: =IF(OR(LEFT(D11,1)="*",LEFT(D11,1)="＊"),H11,"") ->  | I11: =$I$7+SUM($G$8:G11)-SUM($H$8:H11) -> 114998 | M11: ='1月'!M11 -> 5 | N11: ='1月'!N11 -> 被服費 | O11: 0
F12: =IF(OR(LEFT(D12,1)="*",LEFT(D12,1)="＊"),H12,"") ->  | I12: =$I$7+SUM($G$8:G12)-SUM($H$8:H12) -> 114998 | M12: ='1月'!M12 -> 6 | N12: ='1月'!N12 -> 教育費 | O12: 0
I13: =$I$7+SUM($G$8:G13)-SUM($H$8:H13) -> 114998 | M13: ='1月'!M13 -> 7 | N13: ='1月'!N13 -> お小遣い | O13: 0
I14: =$I$7+SUM($G$8:G14)-SUM($H$8:H14) -> 114998 | K14: =IF(J14<>0,VLOOKUP(J14,M$7:N$36,2,FALSE),"") ->  | M14: ='1月'!M14 -> 8 | N14: ='1月'!N14 -> 通信ＩＴ費 | O14: 0
I15: =$I$7+SUM($G$8:G15)-SUM($H$8:H15) -> 114998 | K15: =IF(J15<>0,VLOOKUP(J15,M$7:N$36,2,FALSE),"") ->  | M15: ='1月'!M15 -> 9 | N15: ='1月'!N15 -> 交際費 | O15: 0
I16: =$I$7+SUM($G$8:G16)-SUM($H$8:H16) -> 114998 | M16: ='1月'!M16 -> 10 | N16: ='1月'!N16 -> 趣味娯楽費 | O16: 0
I17: =$I$7+SUM($G$8:G17)-SUM($H$8:H17) -> 114998 | M17: ='1月'!M17 -> 11 | N17: ='1月'!N17 -> 社会保険料 | O17: 0
I18: =$I$7+SUM($G$8:G18)-SUM($H$8:H18) -> 114998 | M18: ='1月'!M18 -> 12 | N18: ='1月'!N18 -> 其他保険料 | O18: 0
I19: =$I$7+SUM($G$8:G19)-SUM($H$8:H19) -> 114998 | M19: ='1月'!M19 -> 13 | N19: ='1月'!N19 -> 保健医療費 | O19: 0
I20: =$I$7+SUM($G$8:G20)-SUM($H$8:H20) -> 114998 | M20: ='1月'!M20 -> 14 | N20: ='1月'!N20 -> 税金 | O20: 0
I21: =$I$7+SUM($G$8:G21)-SUM($H$8:H21) -> 114998 | M21: ='1月'!M21 -> 15 | N21: ='1月'!N21 -> 交通費 | O21: 0
I22: =$I$7+SUM($G$8:G22)-SUM($H$8:H22) -> 114998 | M22: ='1月'!M22 -> 16 | N22: ='1月'!N22 -> 支払手数料 | O22: 0
I23: =$I$7+SUM($G$8:G23)-SUM($H$8:H23) -> 114998 | M23: ='1月'!M23 -> 17 | N23: ='1月'!N23 -> 雑貨日用品 | O23: 0
I24: =$I$7+SUM($G$8:G24)-SUM($H$8:H24) -> 114998 | M24: ='1月'!M24 -> 18 | N24: ='1月'!N24 -> 消耗品費 | O24: 0
I25: =$I$7+SUM($G$8:G25)-SUM($H$8:H25) -> 114998 | M25: ='1月'!M25 -> 19 | N25: ='1月'!N25 -> 冠婚葬祭費 | O25: 0
I26: =$I$7+SUM($G$8:G26)-SUM($H$8:H26) -> 114998 | M26: ='1月'!M26 -> 20 | N26: ='1月'!N26 -> 車両費 | O26: 0
I27: =$I$7+SUM($G$8:G27)-SUM($H$8:H27) -> 114998 | M27: ='1月'!M27 -> 21 | N27: ='1月'!N27 -> 雑費 | O27: 0
I28: =$I$7+SUM($G$8:G28)-SUM($H$8:H28) -> 114998 | M28: ='1月'!M28 -> 22 | N28: ='1月'!N28 -> 0 | O28: 0
I29: =$I$7+SUM($G$8:G29)-SUM($H$8:H29) -> 114998 | M29: ='1月'!M29 -> 23 | N29: ='1月'!N29 -> 0 | O29: 0
I30: =$I$7+SUM($G$8:G30)-SUM($H$8:H30) -> 114998 | M30: ='1月'!M30 -> 24 | N30: ='1月'!N30 -> 0 | O30: 0
I31: =$I$7+SUM($G$8:G31)-SUM($H$8:H31) -> 114998 | M31: ='1月'!M31 -> 25 | N31: ='1月'!N31 -> 0 | O31: 0
I32: =$I$7+SUM($G$8:G32)-SUM($H$8:H32) -> 114998 | M32: ='1月'!M32 -> 26 | N32: ='1月'!N32 -> 0 | O32: 0
C33: =IF(OR(LEFT(D33,1)="*",LEFT(D33,1)="＊"),G33,"") ->  | F33: =IF(OR(LEFT(D33,1)="*",LEFT(D33,1)="＊"),H33,"") ->  | I33: =$I$7+SUM($G$8:G33)-SUM($H$8:H33) -> 114998 | M33: ='1月'!M33 -> 27 | N33: ='1月'!N33 -> 0 | O33: 0
I34: =$I$7+SUM($G$8:G34)-SUM($H$8:H34) -> 114998 | M34: ='1月'!M34 -> 28 | N34: ='1月'!N34 -> 0 | O34: 0
I35: =$I$7+SUM($G$8:G35)-SUM($H$8:H35) -> 114998 | M35: ='1月'!M35 -> 29 | N35: ='1月'!N35 -> 使途不明金 | O35: 0
I36: =$I$7+SUM($G$8:G36)-SUM($H$8:H36) -> 114998 | M36: ='1月'!M36 -> 30 | N36: ='1月'!N36 -> その他 | O36: 0
I37: =$I$7+SUM($G$8:G37)-SUM($H$8:H37) -> 114998 | N37: =IF(SUM(O7:O36)=0,"","合 計") ->  | O37: =IF(SUM(O7:O36)=0,"",SUM(O7:O36)) -> 
C38: 自動振替処理が未済です | E38: 月 計 | G38: =SUM(G$8:G37) -> 0 | H38: =SUM(H$8:H37) -> 0
F39: 前月残高 | G39: =I7 -> 114998
F40: 当月残高 | H40: =I37 -> 114998
F41: 合 計 | G41: =SUM(G38:G40) -> 114998 | H41: =SUM(H38:H40) -> 114998
F43: （月計の内訳）
F44: 現 金 | G44: =G38-G45 -> 0 | H44: =H38-H45 -> 0
F45: 預貯金振替 | G45: =$C$7 -> 0 | H45: =$F$6 -> 0

Sheet 年計
AA1: 年 | AB1: 月 | AC1: 日 | AD1: 時 | AE1: 分 | AF1: 秒
F2: =IF('1月'!I3="","",'1月'!I3) -> わがやの家計簿 | K2: 費 目 別 集 計 表 | M2: № | N2: 費 目 名 | O2: 出 金 計 | AA2: =YEAR(AH4) -> 2018 | AB2: =MONTH(AH4) -> 3 | AC2: =DAY(AH4) -> 19 | AD2: =HOUR(AH4) -> 23 | AE2: =MINUTE(AH4) -> 22 | AF2: =SECOND(AH4) -> 32
B3: ='1月'!D3 -> 2012 | M3: ='1月'!M7 -> 1 | N3: ='1月'!N7 -> 食材飲料費 | O3: =SUM('1月:12月'!O7) -> 304673 | AB3: 会計年度 | AD3: ='1月'!D3 -> 2012 | AE3: 年 | AG3: バックアップファイル名 | AH3: =AB5&"-"&AA2&"-"&AB2&"-"&AC2&"-"&AD2&"-"&AE2&"-"&AF2 -> suitou01m-2018-3-19-23-22-32
B4: 年 間 出 納 額 集 計 表 | M4: ='1月'!M8 -> 2 | N4: ='1月'!N8 -> 外食費 | O4: =SUM('1月:12月'!O8) -> 67016 | AB4: 開始月 | AD4: 1 | AE4: 月 | AG4: バックアップ日付 | AH4: =NOW() -> 2018-03-19T23:22:31.530
M5: ='1月'!M9 -> 3 | N5: ='1月'!N9 -> 住居費 | O5: =SUM('1月:12月'!O9) -> 375000 | AA5: このブック名 | AB5: suitou01m | AD5: BUブック名 | AE5: =AB5&AD3 -> suitou01m2012 | AG5: 期末更新日付 | AH5: 2014-12-11T23:01:55
B6: 月 別 入 出 金 額 集 計 表 | M6: ='1月'!M10 -> 4 | N6: ='1月'!N10 -> 水道光熱費 | O6: =SUM('1月:12月'!O10) -> 116350 | AA6: 現在のシート名 | AD6: 新 シート名 | AE6: 仮 | AF6: 入力規則用 末日
M7: ='1月'!M11 -> 5 | N7: ='1月'!N11 -> 被服費 | O7: =SUM('1月:12月'!O11) -> 25020
B8: 入出金別 月 別 | C8: 現 金 出 納 | E8: 預貯金口座引落 | G8: 合 計 | I8: 残 高 | M8: ='1月'!M12 -> 6 | N8: ='1月'!N12 -> 教育費 | O8: =SUM('1月:12月'!O12) -> 104600 | AA8: sheet1 | AF8: 末日 | AG8: 月末 | AH8: 年度
C9: 入 金 額 | D9: 出 金 額 | E9: 相殺記帳 | F9: 引 落 等 | G9: 入 金 額 | H9: 出 金 額 | M9: ='1月'!M13 -> 7 | N9: ='1月'!N13 -> お小遣い | O9: =SUM('1月:12月'!O13) -> 124000 | AA9: sheet2 | AB9: 1 | AC9: 月 | AD9: =AD4 -> 1 | AE9: =AB10+20 -> 22 | AF9: =DATEVALUE(AH9&"/"&AD10&"/"&1)-1 -> 2012-01-31 | AG9: =DAY(AF9) -> 31 | AH9: =AD3 -> 2012
B10: 前年度繰越 | C10: ① | D10: ② | E10: ③ | F10: ④ | G10: ① ＋ ③ | H10: ② ＋ ④ | I10: ='1月'!I7 -> 455346 | M10: ='1月'!M14 -> 8 | N10: ='1月'!N14 -> 通信ＩＴ費 | O10: =SUM('1月:12月'!O14) -> 57500 | AA10: sheet3 | AB10: 2 | AC10: 月 | AD10: =IF(AD9+1>12,1,AD9+1) -> 2 | AE10: 23 | AF10: =DATEVALUE(AH10&"/"&AD11&"/"&1)-1 -> 2012-02-29 | AG10: 29 | AH10: =IF(AD10<AD9,AH9+1,AH9) -> 2012
B11: =AD9 -> 1 | C11: =G11-E11 -> 46000 | D11: =H11-F11 -> 322825 | E11: ='1月'!C7 -> 41740 | F11: ='1月'!F6 -> 41740 | G11: ='1月'!G70 -> 87740 | H11: ='1月'!H70 -> 364565 | I11: =I10+G11-H11 -> 178521 | M11: ='1月'!M15 -> 9 | N11: ='1月'!N15 -> 交際費 | O11: =SUM('1月:12月'!O15) -> 63000 | AA11: sheet4 | AB11: 3 | AC11: 月 | AD11: =IF(AD10+1>12,1,AD10+1) -> 3 | AE11: 24 | AF11: 2012-03-31 | AG11: 31 | AH11: =IF(AD11<AD10,AH10+1,AH10) -> 2012
B12: =AD10 -> 2 | C12: =G12-E12 -> 384400 | D12: =H12-F12 -> 246780 | E12: ='2月'!C7 -> 41140 | F12: ='2月'!F6 -> 41140 | G12: ='2月'!G38 -> 425540 | H12: ='2月'!H38 -> 287920 | I12: 316141 | M12: ='1月'!M16 -> 10 | N12: ='1月'!N16 -> 趣味娯楽費 | O12: =SUM('1月:12月'!O16) -> 3670 | AA12: sheet5 | AB12: 4 | AC12: 月 | AD12: 4 | AE12: 25 | AF12: 2012-04-30 | AG12: 30 | AH12: 2012
B13: 3 | C13: 286580 | D13: 266813 | E13: ='3月'!C7 -> 43000 | F13: ='3月'!F6 -> 43000 | G13: ='3月'!G38 -> 329580 | H13: ='3月'!H38 -> 309813 | I13: 335908 | M13: ='1月'!M17 -> 11 | N13: ='1月'!N17 -> 社会保険料 | O13: =SUM('1月:12月'!O17) -> 0 | AA13: sheet6 | AB13: 5 | AC13: 月 | AD13: 5 | AE13: 26 | AF13: 2012-05-31 | AG13: 31 | AH13: 2012
B14: 4 | C14: 136690 | D14: 306910 | E14: ='4月'!C7 -> 40130 | F14: ='4月'!F6 -> 40130 | G14: ='4月'!G38 -> 176820 | H14: ='4月'!H38 -> 347040 | I14: 165688 | M14: ='1月'!M18 -> 12 | N14: ='1月'!N18 -> 其他保険料 | O14: =SUM('1月:12月'!O18) -> 66500 | AA14: sheet7 | AB14: 6 | AC14: 月 | AD14: 6 | AE14: 27 | AF14: 2012-06-30 | AG14: 30 | AH14: 2012
B15: 5 | C15: 136800 | D15: 187490 | E15: ='5月'!C7 -> 43010 | F15: ='5月'!F6 -> 43010 | G15: ='5月'!G38 -> 179810 | H15: ='5月'!H38 -> 230500 | I15: 114998 | M15: ='1月'!M19 -> 13 | N15: ='1月'!N19 -> 保健医療費 | O15: =SUM('1月:12月'!O19) -> 0 | AA15: sheet8 | AB15: 7 | AC15: 月 | AD15: 7 | AE15: 28 | AF15: 2012-07-31 | AG15: 31 | AH15: 2012
B16: 6 | C16: 0 | D16: 0 | E16: ='6月'!C7 -> 0 | F16: ='6月'!F6 -> 0 | G16: ='6月'!G38 -> 0 | H16: ='6月'!H38 -> 0 | I16: 114998 | M16: ='1月'!M20 -> 14 | N16: ='1月'!N20 -> 税金 | O16: =SUM('1月:12月'!O20) -> 0 | AA16: sheet9 | AB16: 8 | AC16: 月 | AD16: 8 | AE16: 29 | AF16: 2012-08-31 | AG16: 31 | AH16: 2012
B17: 7 | C17: 0 | D17: 0 | E17: ='7月'!C7 -> 0 | F17: ='7月'!F6 -> 0 | G17: ='7月'!G38 -> 0 | H17: ='7月'!H38 -> 0 | I17: 114998 | M17: ='1月'!M21 -> 15 | N17: ='1月'!N21 -> 交通費 | O17: =SUM('1月:12月'!O21) -> 0 | AA17: sheet10 | AB17: 9 | AC17: 月 | AD17: 9 | AE17: 30 | AF17: 2012-09-30 | AG17: 30 | AH17: 2012
B18: 8 | C18: 0 | D18: 0 | E18: ='8月'!C7 -> 0 | F18: ='8月'!F6 -> 0 | G18: ='8月'!G38 -> 0 | H18: ='8月'!H38 -> 0 | I18: 114998 | M18: ='1月'!M22 -> 16 | N18: ='1月'!N22 -> 支払手数料 | O18: =SUM('1月:12月'!O22) -> 0 | AA18: sheet11 | AB18: 10 | AC18: 月 | AD18: 10 | AE18: 31 | AF18: =DATEVALUE(AH18&"/"&AD19&"/"&1)-1 -> 2012-10-31 | AG18: 31 | AH18: 2012
B19: 9 | C19: 0 | D19: 0 | E19: ='9月'!C7 -> 0 | F19: ='9月'!F6 -> 0 | G19: ='9月'!G38 -> 0 | H19: ='9月'!H38 -> 0 | I19: 114998 | M19: ='1月'!M23 -> 17 | N19: ='1月'!N23 -> 雑貨日用品 | O19: =SUM('1月:12月'!O23) -> 34300 | AA19: sheet12 | AB19: 11 | AC19: 月 | AD19: 11 | AE19: 32 | AF19: 2012-11-30 | AG19: 30 | AH19: 2012
B20: 10 | C20: 0 | D20: 0 | E20: ='10月'!C7 -> 0 | F20: ='10月'!F6 -> 0 | G20: ='10月'!G38 -> 0 | H20: ='10月'!H38 -> 0 | I20: 114998 | M20: ='1月'!M24 -> 18 | N20: ='1月'!N24 -> 消耗品費 | O20: =SUM('1月:12月'!O24) -> 1703 | AA20: sheet13 | AB20: 12 | AC20: 月 | AD20: 12 | AE20: 20 | AF20: =DATEVALUE(AH20&"/"&AD21&"/"&1)-1 -> 2011-12-31 | AG20: 31 | AH20: 2012
B21: 11 | C21: 0 | D21: 0 | E21: ='11月'!C7 -> 0 | F21: ='11月'!F6 -> 0 | G21: ='11月'!G38 -> 0 | H21: ='11月'!H38 -> 0 | I21: 114998 | M21: ='1月'!M25 -> 19 | N21: ='1月'!N25 -> 冠婚葬祭費 | O21: =SUM('1月:12月'!O25) -> 3700 | AA21: sheet14 | AD21: 1
B22: 12 | C22: 0 | D22: 0 | E22: ='12月'!C7 -> 0 | F22: ='12月'!F6 -> 0 | G22: ='12月'!G38 -> 0 | H22: ='12月'!H38 -> 0 | I22: 114998 | M22: ='1月'!M26 -> 20 | N22: ='1月'!N26 -> 車両費 | O22: =SUM('1月:12月'!O26) -> 39203
B23: 計 | C23: =SUM(C11:C22) -> 990470 | D23: 1330818 | E23: 209020 | F23: 209020 | G23: 1199490 | H23: 1539838 | M23: ='1月'!M27 -> 21 | N23: ='1月'!N27 -> 雑費 | O23: =SUM('1月:12月'!O27) -> 0
B24: 前年度繰越 | E24: 金 額 違 算 | G24: =I10 -> 455346 | M24: ='1月'!M28 -> 22 | N24: ='1月'!N28 -> 0 | O24: =SUM('1月:12月'!O28) -> 0
B25: 次年度繰越 | H25: =I22 -> 114998 | M25: ='1月'!M29 -> 23 | N25: ='1月'!N29 -> 0 | O25: =SUM('1月:12月'!O29) -> 0
B26: 合 計 | G26: =SUM(G23:G25) -> 1654836 | H26: =SUM(H23:H25) -> 1654836 | M26: ='1月'!M30 -> 24 | N26: ='1月'!N30 -> 0 | O26: =SUM('1月:12月'!O30) -> 0
B27: （備 考） | M27: ='1月'!M31 -> 25 | N27: ='1月'!N31 -> 0 | O27: =SUM('1月:12月'!O31) -> 0
B28: （ここに記事を入力してください。） この文字は Delete キーで消去できます。 | M28: ='1月'!M32 -> 26 | N28: ='1月'!N32 -> 0 | O28: =SUM('1月:12月'!O32) -> 0
M29: ='1月'!M33 -> 27 | N29: ='1月'!N33 -> 0 | O29: =SUM('1月:12月'!O33) -> 0
M30: ='1月'!M34 -> 28 | N30: ='1月'!N34 -> 0 | O30: =SUM('1月:12月'!O34) -> 0
M31: ='1月'!M35 -> 29 | N31: ='1月'!N35 -> 使途不明金 | O31: =SUM('1月:12月'!O35) -> 3603
M32: ='1月'!M36 -> 30 | N32: ='1月'!N36 -> その他 | O32: =SUM('1月:12月'!O36) -> 150000
N33: =IF(SUM(O3:O32)=0,"","合 計") -> 合 計 | O33: =SUM('1月:12月'!O37) -> 1539838

Sheet 費目毎月別集計表
C1: ='1月'!D3 -> 2012 | N1: ='1月'!I3 -> わがやの家計簿
H2: 出 金 項 目 毎 月 別 集 計 表
A4: № | B4: 費 目 名 | C4: 年 計 | D4: =年計!AD9 -> 1 | E4: =年計!AD10 -> 2 | F4: =年計!AD11 -> 3 | G4: =年計!AD12 -> 4 | H4: =年計!AD13 -> 5 | I4: =年計!AD14 -> 6 | J4: =年計!AD15 -> 7 | K4: =年計!AD16 -> 8 | L4: =年計!AD17 -> 9 | M4: =年計!AD18 -> 10 | N4: =年計!AD19 -> 11 | O4: =年計!AD20 -> 12
A5: ='1月'!M7 -> 1 | B5: ='1月'!N7 -> 食材飲料費 | C5: =SUM(D5:O5) -> 304673 | D5: ='1月'!O7 -> 81941 | E5: ='2月'!O7 -> 45710 | F5: ='3月'!O7 -> 59436 | G5: ='4月'!O7 -> 76512 | H5: ='5月'!O7 -> 41074 | I5: ='6月'!O7 -> 0 | J5: ='7月'!O7 -> 0 | K5: ='8月'!O7 -> 0 | L5: ='9月'!O7 -> 0 | M5: ='10月'!O7 -> 0 | N5: ='11月'!O7 -> 0 | O5: ='12月'!O7 -> 0
A6: ='1月'!M8 -> 2 | B6: ='1月'!N8 -> 外食費 | C6: =SUM(D6:O6) -> 67016 | D6: ='1月'!O8 -> 8340 | E6: ='2月'!O8 -> 24360 | F6: ='3月'!O8 -> 13540 | G6: ='4月'!O8 -> 0 | H6: ='5月'!O8 -> 20776 | I6: ='6月'!O8 -> 0 | J6: ='7月'!O8 -> 0 | K6: ='8月'!O8 -> 0 | L6: ='9月'!O8 -> 0 | M6: ='10月'!O8 -> 0 | N6: ='11月'!O8 -> 0 | O6: ='12月'!O8 -> 0
A7: ='1月'!M9 -> 3 | B7: ='1月'!N9 -> 住居費 | C7: 375000 | D7: ='1月'!O9 -> 75000 | E7: ='2月'!O9 -> 75000 | F7: ='3月'!O9 -> 75000 | G7: ='4月'!O9 -> 75000 | H7: ='5月'!O9 -> 75000 | I7: ='6月'!O9 -> 0 | J7: ='7月'!O9 -> 0 | K7: ='8月'!O9 -> 0 | L7: ='9月'!O9 -> 0 | M7: ='10月'!O9 -> 0 | N7: ='11月'!O9 -> 0 | O7: ='12月'!O9 -> 0
A8: ='1月'!M10 -> 4 | B8: ='1月'!N10 -> 水道光熱費 | C8: 116350 | D8: ='1月'!O10 -> 25350 | E8: ='2月'!O10 -> 22070 | F8: ='3月'!O10 -> 23930 | G8: ='4月'!O10 -> 21060 | H8: ='5月'!O10 -> 23940 | I8: ='6月'!O10 -> 0 | J8: ='7月'!O10 -> 0 | K8: ='8月'!O10 -> 0 | L8: ='9月'!O10 -> 0 | M8: ='10月'!O10 -> 0 | N8: ='11月'!O10 -> 0 | O8: ='12月'!O10 -> 0
A9: ='1月'!M11 -> 5 | B9: ='1月'!N11 -> 被服費 | C9: 25020 | D9: ='1月'!O11 -> 17490 | E9: ='2月'!O11 -> 0 | F9: ='3月'!O11 -> 7530 | G9: ='4月'!O11 -> 0 | H9: ='5月'!O11 -> 0 | I9: ='6月'!O11 -> 0 | J9: ='7月'!O11 -> 0 | K9: ='8月'!O11 -> 0 | L9: ='9月'!O11 -> 0 | M9: ='10月'!O11 -> 0 | N9: ='11月'!O11 -> 0 | O9: ='12月'!O11 -> 0
A10: ='1月'!M12 -> 6 | B10: ='1月'!N12 -> 教育費 | C10: 104600 | D10: ='1月'!O12 -> 23000 | E10: ='2月'!O12 -> 35600 | F10: ='3月'!O12 -> 23000 | G10: ='4月'!O12 -> 0 | H10: ='5月'!O12 -> 23000 | I10: ='6月'!O12 -> 0 | J10: ='7月'!O12 -> 0 | K10: ='8月'!O12 -> 0 | L10: ='9月'!O12 -> 0 | M10: ='10月'!O12 -> 0 | N10: ='11月'!O12 -> 0 | O10: ='12月'!O12 -> 0
A11: ='1月'!M13 -> 7 | B11: ='1月'!N13 -> お小遣い | C11: 124000 | D11: ='1月'!O13 -> 31000 | E11: ='2月'!O13 -> 23000 | F11: ='3月'!O13 -> 24000 | G11: ='4月'!O13 -> 23000 | H11: ='5月'!O13 -> 23000 | I11: ='6月'!O13 -> 0 | J11: ='7月'!O13 -> 0 | K11: ='8月'!O13 -> 0 | L11: ='9月'!O13 -> 0 | M11: ='10月'!O13 -> 0 | N11: ='11月'!O13 -> 0 | O11: ='12月'!O13 -> 0
A12: ='1月'!M14 -> 8 | B12: ='1月'!N14 -> 通信ＩＴ費 | C12: 57500 | D12: ='1月'!O14 -> 6220 | E12: ='2月'!O14 -> 7070 | F12: ='3月'!O14 -> 7070 | G12: ='4月'!O14 -> 30070 | H12: ='5月'!O14 -> 7070 | I12: ='6月'!O14 -> 0 | J12: ='7月'!O14 -> 0 | K12: ='8月'!O14 -> 0 | L12: ='9月'!O14 -> 0 | M12: ='10月'!O14 -> 0 | N12: ='11月'!O14 -> 0 | O12: ='12月'!O14 -> 0
A13: ='1月'!M15 -> 9 | B13: ='1月'!N15 -> 交際費 | C13: 63000 | D13: ='1月'!O15 -> 0 | E13: ='2月'!O15 -> 10000 | F13: ='3月'!O15 -> 3000 | G13: ='4月'!O15 -> 50000 | H13: ='5月'!O15 -> 0 | I13: ='6月'!O15 -> 0 | J13: ='7月'!O15 -> 0 | K13: ='8月'!O15 -> 0 | L13: ='9月'!O15 -> 0 | M13: ='10月'!O15 -> 0 | N13: ='11月'!O15 -> 0 | O13: ='12月'!O15 -> 0
A14: ='1月'!M16 -> 10 | B14: ='1月'!N16 -> 趣味娯楽費 | C14: 3670 | D14: ='1月'!O16 -> 0 | E14: ='2月'!O16 -> 0 | F14: ='3月'!O16 -> 3670 | G14: ='4月'!O16 -> 0 | H14: ='5月'!O16 -> 0 | I14: ='6月'!O16 -> 0 | J14: ='7月'!O16 -> 0 | K14: ='8月'!O16 -> 0 | L14: ='9月'!O16 -> 0 | M14: ='10月'!O16 -> 0 | N14: ='11月'!O16 -> 0 | O14: ='12月'!O16 -> 0
A15: ='1月'!M17 -> 11 | B15: ='1月'!N17 -> 社会保険料 | C15: 0 | D15: ='1月'!O17 -> 0 | E15: ='2月'!O17 -> 0 | F15: ='3月'!O17 -> 0 | G15: ='4月'!O17 -> 0 | H15: ='5月'!O17 -> 0 | I15: ='6月'!O17 -> 0 | J15: ='7月'!O17 -> 0 | K15: ='8月'!O17 -> 0 | L15: ='9月'!O17 -> 0 | M15: ='10月'!O17 -> 0 | N15: ='11月'!O17 -> 0 | O15: ='12月'!O17 -> 0
A16: ='1月'!M18 -> 12 | B16: ='1月'!N18 -> 其他保険料 | C16: 66500 | D16: ='1月'!O18 -> 18500 | E16: ='2月'!O18 -> 12000 | F16: ='3月'!O18 -> 12000 | G16: ='4月'!O18 -> 12000 | H16: ='5月'!O18 -> 12000 | I16: ='6月'!O18 -> 0 | J16: ='7月'!O18 -> 0 | K16: ='8月'!O18 -> 0 | L16: ='9月'!O18 -> 0 | M16: ='10月'!O18 -> 0 | N16: ='11月'!O18 -> 0 | O16: ='12月'!O18 -> 0
A17: ='1月'!M19 -> 13 | B17: ='1月'!N19 -> 保健医療費 | C17: 0 | D17: ='1月'!O19 -> 0 | E17: ='2月'!O19 -> 0 | F17: ='3月'!O19 -> 0 | G17: ='4月'!O19 -> 0 | H17: ='5月'!O19 -> 0 | I17: ='6月'!O19 -> 0 | J17: ='7月'!O19 -> 0 | K17: ='8月'!O19 -> 0 | L17: ='9月'!O19 -> 0 | M17: ='10月'!O19 -> 0 | N17: ='11月'!O19 -> 0 | O17: ='12月'!O19 -> 0
A18: ='1月'!M20 -> 14 | B18: ='1月'!N20 -> 税金 | C18: 0 | D18: ='1月'!O20 -> 0 | E18: ='2月'!O20 -> 0 | F18: ='3月'!O20 -> 0 | G18: ='4月'!O20 -> 0 | H18: ='5月'!O20 -> 0 | I18: ='6月'!O20 -> 0 | J18: ='7月'!O20 -> 0 | K18: ='8月'!O20 -> 0 | L18: ='9月'!O20 -> 0 | M18: ='10月'!O20 -> 0 | N18: ='11月'!O20 -> 0 | O18: ='12月'!O20 -> 0
A19: ='1月'!M21 -> 15 | B19: ='1月'!N21 -> 交通費 | C19: 0 | D19: ='1月'!O21 -> 0 | E19: ='2月'!O21 -> 0 | F19: ='3月'!O21 -> 0 | G19: ='4月'!O21 -> 0 | H19: ='5月'!O21 -> 0 | I19: ='6月'!O21 -> 0 | J19: ='7月'!O21 -> 0 | K19: ='8月'!O21 -> 0 | L19: ='9月'!O21 -> 0 | M19: ='10月'!O21 -> 0 | N19: ='11月'!O21 -> 0 | O19: ='12月'!O21 -> 0
A20: ='1月'!M22 -> 16 | B20: ='1月'!N22 -> 支払手数料 | C20: 0 | D20: ='1月'!O22 -> 0 | E20: ='2月'!O22 -> 0 | F20: ='3月'!O22 -> 0 | G20: ='4月'!O22 -> 0 | H20: ='5月'!O22 -> 0 | I20: ='6月'!O22 -> 0 | J20: ='7月'!O22 -> 0 | K20: ='8月'!O22 -> 0 | L20: ='9月'!O22 -> 0 | M20: ='10月'!O22 -> 0 | N20: ='11月'!O22 -> 0 | O20: ='12月'!O22 -> 0
A21: ='1月'!M23 -> 17 | B21: ='1月'!N23 -> 雑貨日用品 | C21: 34300 | D21: ='1月'!O23 -> 10400 | E21: ='2月'!O23 -> 23900 | F21: ='3月'!O23 -> 0 | G21: ='4月'!O23 -> 0 | H21: ='5月'!O23 -> 0 | I21: ='6月'!O23 -> 0 | J21: ='7月'!O23 -> 0 | K21: ='8月'!O23 -> 0 | L21: ='9月'!O23 -> 0 | M21: ='10月'!O23 -> 0 | N21: ='11月'!O23 -> 0 | O21: ='12月'!O23 -> 0
A22: ='1月'!M24 -> 18 | B22: ='1月'!N24 -> 消耗品費 | C22: 1703 | D22: ='1月'!O24 -> 165 | E22: ='2月'!O24 -> 670 | F22: ='3月'!O24 -> 0 | G22: ='4月'!O24 -> 868 | H22: ='5月'!O24 -> 0 | I22: ='6月'!O24 -> 0 | J22: ='7月'!O24 -> 0 | K22: ='8月'!O24 -> 0 | L22: ='9月'!O24 -> 0 | M22: ='10月'!O24 -> 0 | N22: ='11月'!O24 -> 0 | O22: ='12月'!O24 -> 0
A23: ='1月'!M25 -> 19 | B23: ='1月'!N25 -> 冠婚葬祭費 | C23: 3700 | D23: ='1月'!O25 -> 3700 | E23: ='2月'!O25 -> 0 | F23: ='3月'!O25 -> 0 | G23: ='4月'!O25 -> 0 | H23: ='5月'!O25 -> 0 | I23: ='6月'!O25 -> 0 | J23: ='7月'!O25 -> 0 | K23: ='8月'!O25 -> 0 | L23: ='9月'!O25 -> 0 | M23: ='10月'!O25 -> 0 | N23: ='11月'!O25 -> 0 | O23: ='12月'!O25 -> 0
A24: ='1月'!M26 -> 20 | B24: ='1月'!N26 -> 車両費 | C24: 39203 | D24: ='1月'!O26 -> 9859 | E24: ='2月'!O26 -> 8540 | F24: ='3月'!O26 -> 7634 | G24: ='4月'!O26 -> 8530 | H24: ='5月'!O26 -> 4640 | I24: ='6月'!O26 -> 0 | J24: ='7月'!O26 -> 0 | K24: ='8月'!O26 -> 0 | L24: ='9月'!O26 -> 0 | M24: ='10月'!O26 -> 0 | N24: ='11月'!O26 -> 0 | O24: ='12月'!O26 -> 0
A25: ='1月'!M27 -> 21 | B25: ='1月'!N27 -> 雑費 | C25: 0 | D25: ='1月'!O27 -> 0 | E25: ='2月'!O27 -> 0 | F25: ='3月'!O27 -> 0 | G25: ='4月'!O27 -> 0 | H25: ='5月'!O27 -> 0 | I25: ='6月'!O27 -> 0 | J25: ='7月'!O27 -> 0 | K25: ='8月'!O27 -> 0 | L25: ='9月'!O27 -> 0 | M25: ='10月'!O27 -> 0 | N25: ='11月'!O27 -> 0 | O25: ='12月'!O27 -> 0
A26: ='1月'!M28 -> 22 | B26: ='1月'!N28 -> 0 | C26: 0 | D26: ='1月'!O28 -> 0 | E26: ='2月'!O28 -> 0 | F26: ='3月'!O28 -> 0 | G26: ='4月'!O28 -> 0 | H26: ='5月'!O28 -> 0 | I26: ='6月'!O28 -> 0 | J26: ='7月'!O28 -> 0 | K26: ='8月'!O28 -> 0 | L26: ='9月'!O28 -> 0 | M26: ='10月'!O28 -> 0 | N26: ='11月'!O28 -> 0 | O26: ='12月'!O28 -> 0
A27: ='1月'!M29 -> 23 | B27: ='1月'!N29 -> 0 | C27: 0 | D27: ='1月'!O29 -> 0 | E27: ='2月'!O29 -> 0 | F27: ='3月'!O29 -> 0 | G27: ='4月'!O29 -> 0 | H27: ='5月'!O29 -> 0 | I27: ='6月'!O29 -> 0 | J27: ='7月'!O29 -> 0 | K27: ='8月'!O29 -> 0 | L27: ='9月'!O29 -> 0 | M27: ='10月'!O29 -> 0 | N27: ='11月'!O29 -> 0 | O27: ='12月'!O29 -> 0
A28: ='1月'!M30 -> 24 | B28: ='1月'!N30 -> 0 | C28: 0 | D28: ='1月'!O30 -> 0 | E28: ='2月'!O30 -> 0 | F28: ='3月'!O30 -> 0 | G28: ='4月'!O30 -> 0 | H28: ='5月'!O30 -> 0 | I28: ='6月'!O30 -> 0 | J28: ='7月'!O30 -> 0 | K28: ='8月'!O30 -> 0 | L28: ='9月'!O30 -> 0 | M28: ='10月'!O30 -> 0 | N28: ='11月'!O30 -> 0 | O28: ='12月'!O30 -> 0
A29: ='1月'!M31 -> 25 | B29: ='1月'!N31 -> 0 | C29: 0 | D29: ='1月'!O31 -> 0 | E29: ='2月'!O31 -> 0 | F29: ='3月'!O31 -> 0 | G29: ='4月'!O31 -> 0 | H29: ='5月'!O31 -> 0 | I29: ='6月'!O31 -> 0 | J29: ='7月'!O31 -> 0 | K29: ='8月'!O31 -> 0 | L29: ='9月'!O31 -> 0 | M29: ='10月'!O31 -> 0 | N29: ='11月'!O31 -> 0 | O29: ='12月'!O31 -> 0
A30: ='1月'!M32 -> 26 | B30: ='1月'!N32 -> 0 | C30: 0 | D30: ='1月'!O32 -> 0 | E30: ='2月'!O32 -> 0 | F30: ='3月'!O32 -> 0 | G30: ='4月'!O32 -> 0 | H30: ='5月'!O32 -> 0 | I30: ='6月'!O32 -> 0 | J30: ='7月'!O32 -> 0 | K30: ='8月'!O32 -> 0 | L30: ='9月'!O32 -> 0 | M30: ='10月'!O32 -> 0 | N30: ='11月'!O32 -> 0 | O30: ='12月'!O32 -> 0
A31: ='1月'!M33 -> 27 | B31: ='1月'!N33 -> 0 | C31: 0 | D31: ='1月'!O33 -> 0 | E31: ='2月'!O33 -> 0 | F31: ='3月'!O33 -> 0 | G31: ='4月'!O33 -> 0 | H31: ='5月'!O33 -> 0 | I31: ='6月'!O33 -> 0 | J31: ='7月'!O33 -> 0 | K31: ='8月'!O33 -> 0 | L31: ='9月'!O33 -> 0 | M31: ='10月'!O33 -> 0 | N31: ='11月'!O33 -> 0 | O31: ='12月'!O33 -> 0
A32: ='1月'!M34 -> 28 | B32: ='1月'!N34 -> 0 | C32: 0 | D32: ='1月'!O34 -> 0 | E32: ='2月'!O34 -> 0 | F32: ='3月'!O34 -> 0 | G32: ='4月'!O34 -> 0 | H32: ='5月'!O34 -> 0 | I32: ='6月'!O34 -> 0 | J32: ='7月'!O34 -> 0 | K32: ='8月'!O34 -> 0 | L32: ='9月'!O34 -> 0 | M32: ='10月'!O34 -> 0 | N32: ='11月'!O34 -> 0 | O32: ='12月'!O34 -> 0
A33: ='1月'!M35 -> 29 | B33: ='1月'!N35 -> 使途不明金 | C33: 3603 | D33: ='1月'!O35 -> 3600 | E33: ='2月'!O35 -> 0 | F33: ='3月'!O35 -> 3 | G33: ='4月'!O35 -> 0 | H33: ='5月'!O35 -> 0 | I33: ='6月'!O35 -> 0 | J33: ='7月'!O35 -> 0 | K33: ='8月'!O35 -> 0 | L33: ='9月'!O35 -> 0 | M33: ='10月'!O35 -> 0 | N33: ='11月'!O35 -> 0 | O33: ='12月'!O35 -> 0
B34: 費 用 計 | C34: =SUM(C5:C33) -> 1389838 | D34: =SUM(D5:D33) -> 314565 | E34: =SUM(E5:E33) -> 287920 | F34: =SUM(F5:F33) -> 259813 | G34: 297040 | H34: 230500 | I34: 0 | J34: 0 | K34: 0 | L34: 0 | M34: 0 | N34: 0 | O34: =SUM(O5:O33) -> 0
A35: ='1月'!M36 -> 30 | B35: ='1月'!N36 -> その他 | C35: 150000 | D35: ='1月'!O36 -> 50000 | E35: ='2月'!O36 -> 0 | F35: ='3月'!O36 -> 50000 | G35: ='4月'!O36 -> 50000 | H35: ='5月'!O36 -> 0 | I35: ='6月'!O36 -> 0 | J35: ='7月'!O36 -> 0 | K35: ='8月'!O36 -> 0 | L35: ='9月'!O36 -> 0 | M35: ='10月'!O36 -> 0 | N35: ='11月'!O36 -> 0 | O35: ='12月'!O36 -> 0
B36: 出金総計 | C36: =C34+C35 -> 1539838 | D36: =D34+D35 -> 364565 | E36: 287920 | F36: 309813 | G36: 347040 | H36: 230500 | I36: 0 | J36: 0 | K36: 0 | L36: 0 | M36: 0 | N36: 0 | O36: 0

Sheet 費目名参考
B2: 費 目 名 参 考 資 料
B3: 要は、自分が分かるような、納得のいくような費目にすることがベストだと思います。
B5: 旅費交通費 | D5: 給料手当 | F5: 食 材 費 | H5: 主 食 費
B6: 通 信 費 | D6: 雑 給 | F6: 外 食 費 | H6: 副 食 費
B7: 車 両 費 | D7: 賞 与 | F7: 嗜 好 品 費
B8: 交 際 費 | D8: 退 職 金 | F8: 住 居 費
B9: 諸 会 費 | D9: 法定福利費 | F9: 水道光熱費
B10: 広告宣伝費 | D10: 福利厚生費 | F10: 被 服 費
B11: 保 険 料 | D11: 会 議 費 | F11: 車 両 費
B12: 修 繕 費 | D12: 賃 借 料 | F12: 交 通 費
B13: 水道光熱費 | D13: リース料 | F13: 医療衛生費
B14: 事務費 | D14: 試験研究費 | F14: 教 育 費
B15: 消耗品費 | D15: 減価償却費 | F15: 教養娯楽費
B16: 新聞図書費 | F16: 交際慶弔費
B17: 租税公課 | F17: 通 信 費
B18: 支払手数料 | D18: 期首商品たな卸高 | F18: 保 険 料
B19: 支払利息 | D19: 期末商品たな卸高 | F19: 納 税 費
B20: 雑 費 | D20: 仕 入 | F20: 家 財 費
B21: 現金過不足 | F21: 貯 蓄 費
B22: 振り分け未済 | F22: 雑 費
